Workbook

Sheet Chart
F1: Note: You must enable macros for this workbook to update correctly
B2: =Data!AU181 -> MIL | C2: =Data!AV181 -> 0 | D2: =Data!AW181 -> 0.5987654321
B3: =Data!AU182 -> CHC | C3: =Data!AV182 -> 5 | D3: =Data!AW182 -> 0.5679012346
B4: =Data!AU183 -> CIN | C4: =Data!AV183 -> 14 | D4: =Data!AW183 -> 0.512345679
B5: =Data!AU184 -> STL | C5: =Data!AV184 -> 19 | D5: =Data!AW184 -> 0.4814814815
B6: =Data!AU185 -> PIT | C6: =Data!AV185 -> 26 | D6: =Data!AW185 -> 0.4382716049
G92: Y-Axis = First-Place Lead Size (Brewers) (# of games)

Sheet Data
A1: NLC25 | B1: CHC | C1: W | D1: L | F1: CIN | G1: W | H1: L | J1: MIL | K1: W | L1: L | N1: PIT | O1: W | P1: L | R1: STL | S1: W | T1: L | V1: PHIL | W1: W | X1: L | Z1: 2024 | AA1: W | AB1: L | AE1: =B1 -> CHC | AF1: =F1 -> CIN | AG1: =J1 -> MIL | AH1: =N1 -> PIT | AI1: =R1 -> STL | AJ1: =V1 -> PHIL | AK1: =Z1 -> 2024 | AM1: =AE1 -> CHC | AN1: =AF1 -> CIN | AO1: =AG1 -> MIL | AP1: =AH1 -> PIT | AQ1: =AI1 -> STL
A2: 2025-03-24 | C2: 0 | D2: 0 | G2: 0 | H2: 0 | K2: 0 | L2: 0 | O2: 0 | P2: 0 | S2: 0 | T2: 0 | W2: 0 | X2: 0 | AA2: 0 | AB2: 0 | AE2: 0 | AF2: 0 | AG2: 0 | AH2: 0 | AI2: 0 | AJ2: 0 | AK2: 0 | AM2: 0 | AN2: 0 | AO2: 0 | AP2: 0 | AQ2: 0 | AY2: =IF(AO2 = 0, MIN(AM2:AN2, AP2:AQ2), 0-AO2) -> 0
A3: 2025-03-25 | B3: -1 | C3: =C2+IF(B3>0,B3,0) -> 0 | D3: =D2-IF(B3<0,B3,0) -> 1 | G3: =G2+IF(F3>0,F3,0) -> 0 | H3: =H2-IF(F3<0,F3,0) -> 0 | K3: =K2+IF(J3>0,J3,0) -> 0 | L3: =L2-IF(J3<0,J3,0) -> 0 | O3: =O2+IF(N3>0,N3,0) -> 0 | P3: =P2-IF(N3<0,N3,0) -> 0 | S3: =S2+IF(R3>0,R3,0) -> 0 | T3: =T2-IF(R3<0,R3,0) -> 0 | W3: =W2+IF(V3>0,V3,0) -> 0 | X3: =X2-IF(V3<0,V3,0) -> 0 | AA3: =AA2+IF(Z3>0,Z3,0) -> 0 | AB3: =AB2-IF(Z3<0,Z3,0) -> 0 | AE3: =C3-D3 -> -1 | AF3: =G3-H3 -> 0 | AG3: =K3-L3 -> 0 | AH3: =O3-P3 -> 0 | AI3: =S3-T3 -> 0 | AJ3: =W3-X3 -> 0 | AK3: =AA3-AB3 -> 0 | AM3: =(MAX($AE3:$AI3)-AE3)/2 -> 0.5 | AN3: =(MAX($AE3:$AI3)-AF3)/2 -> 0 | AO3: =(MAX($AE3:$AI3)-AG3)/2 -> 0 | AP3: =(MAX($AE3:$AI3)-AH3)/2 -> 0 | AQ3: =(MAX($AE3:$AI3)-AI3)/2 -> 0 | AU3: =AU181 -> MIL | AV3: 0 | AW3: 0.5987654321 | AY3: 0
A4: 2025-03-26 | B4: -1 | C4: =C3+IF(B4>0,B4,0) -> 0 | D4: =D3-IF(B4<0,B4,0) -> 2 | G4: 0 | H4: 0 | K4: 0 | L4: 0 | O4: 0 | P4: 0 | S4: 0 | T4: 0 | W4: 0 | X4: 0 | AA4: =AA3+IF(Z4>0,Z4,0) -> 0 | AB4: =AB3-IF(Z4<0,Z4,0) -> 0 | AE4: -2 | AF4: 0 | AG4: 0 | AH4: 0 | AI4: 0 | AJ4: =W4-X4 -> 0 | AK4: 0 | AM4: =(MAX($AE4:$AI4)-AE4)/2 -> 1 | AN4: =(MAX($AE4:$AI4)-AF4)/2 -> 0 | AO4: =(MAX($AE4:$AI4)-AG4)/2 -> 0 | AP4: =(MAX($AE4:$AI4)-AH4)/2 -> 0 | AQ4: =(MAX($AE4:$AI4)-AI4)/2 -> 0 | AU4: CHC | AV4: 5 | AW4: 0.5679012346 | AY4: 0
A5: 2025-03-27 | B5: 1 | C5: 1 | D5: 2 | F5: -1 | G5: 0 | H5: 1 | J5: -1 | K5: 0 | L5: 1 | N5: -1 | O5: 0 | P5: 1 | R5: 1 | S5: 1 | T5: 0 | V5: 1 | W5: 1 | X5: 0 | AA5: 0 | AB5: 0 | AE5: -1 | AF5: -1 | AG5: -1 | AH5: -1 | AI5: 1 | AJ5: 1 | AK5: 0 | AM5: 1 | AN5: 1 | AO5: 1 | AP5: 1 | AQ5: 0 | AU5: CIN | AV5: 14 | AW5: 0.512345679 | AY5: -1
A6: 2025-03-28 | B6: -1 | C6: 1 | D6: 3 | G6: 0 | H6: 1 | K6: 0 | L6: 1 | N6: 1 | O6: 1 | P6: 1 | S6: 1 | T6: 0 | W6: 1 | X6: 0 | Z6: 1 | AA6: 1 | AB6: 0 | AE6: -2 | AF6: -1 | AG6: -1 | AH6: 0 | AI6: 1 | AJ6: 1 | AK6: 1 | AM6: 1.5 | AN6: 1 | AO6: 1 | AP6: 0.5 | AQ6: 0 | AU6: STL | AV6: 19 | AW6: 0.4814814815 | AY6: -1
A7: 2025-03-29 | B7: 1 | C7: 2 | D7: 3 | F7: 1 | G7: 1 | H7: 1 | J7: -1 | K7: 0 | L7: 2 | N7: -1 | O7: 1 | P7: 2 | R7: 1 | S7: 2 | T7: 0 | V7: 1 | W7: 2 | X7: 0 | Z7: 1 | AA7: 2 | AB7: 0 | AE7: -1 | AF7: 0 | AG7: -2 | AH7: -1 | AI7: 2 | AJ7: 2 | AK7: 2 | AM7: 1.5 | AN7: 1 | AO7: 2 | AP7: 1.5 | AQ7: 0 | AU7: PIT | AV7: 26 | AW7: 0.4382716049 | AY7: -2
A8: 2025-03-30 | B8: -1 | C8: 2 | D8: 4 | F8: -1 | G8: 1 | H8: 2 | J8: -1 | K8: 0 | L8: 3 | N8: -1 | O8: 1 | P8: 3 | R8: 1 | S8: 3 | T8: 0 | V8: -1 | W8: 2 | X8: 1 | Z8: 1 | AA8: 3 | AB8: 0 | AE8: -2 | AF8: -1 | AG8: -3 | AH8: -2 | AI8: 3 | AJ8: 1 | AK8: 3 | AM8: 2.5 | AN8: 2 | AO8: 3 | AP8: 2.5 | AQ8: 0 | AY8: -3
A9: 2025-03-31 | B9: 1 | C9: =C8+IF(B9>0,B9,0) -> 3 | D9: =D8-IF(B9<0,B9,0) -> 4 | F9: 1 | G9: =G8+IF(F9>0,F9,0) -> 2 | H9: =H8-IF(F9<0,F9,0) -> 2 | J9: -1 | K9: 0 | L9: 4 | N9: -1 | O9: 1 | P9: 4 | R9: -1 | S9: 3 | T9: 1 | V9: 1 | W9: 3 | X9: 1 | AA9: 3 | AB9: 0 | AE9: -1 | AF9: 0 | AG9: -4 | AH9: -3 | AI9: 2 | AJ9: 2 | AK9: 3 | AM9: 1.5 | AN9: 1 | AO9: 3 | AP9: 2.5 | AQ9: 0 | AY9: -3
A10: 2025-04-01 | B10: 1 | C10: 4 | D10: 4 | F10: -1 | G10: 2 | H10: 3 | J10: 1 | K10: 1 | L10: 4 | N10: -1 | O10: 1 | P10: 5 | R10: -1 | S10: 3 | T10: 2 | W10: 3 | X10: 1 | Z10: 1 | AA10: 4 | AB10: 0 | AE10: 0 | AF10: -1 | AG10: -3 | AH10: -4 | AI10: 1 | AJ10: 2 | AK10: 4 | AM10: 0.5 | AN10: 1 | AO10: 2 | AP10: 2.5 | AQ10: 0 | AY10: -2
A11: 2025-04-02 | B11: 1 | C11: 5 | D11: 4 | F11: -1 | G11: 2 | H11: 4 | J11: 1 | K11: 2 | L11: 4 | N11: 1 | O11: 2 | P11: 5 | R11: 1 | S11: 4 | T11: 2 | V11: 1 | W11: 4 | X11: 1 | Z11: -1 | AA11: 4 | AB11: 1 | AE11: 1 | AF11: -2 | AG11: -2 | AH11: -3 | AI11: 2 | AJ11: 3 | AK11: 3 | AM11: 0.5 | AN11: 2 | AO11: 2 | AP11: 2.5 | AQ11: 0 | AY11: -2
A12: 2025-04-03 | C12: 5 | D12: 4 | F12: -1 | G12: 2 | H12: 5 | J12: 1 | K12: 3 | L12: 4 | O12: 2 | P12: 5 | S12: 4 | T12: 2 | V12: 1 | W12: 5 | X12: 1 | AA12: 4 | AB12: 1 | AE12: 1 | AF12: -3 | AG12: -1 | AH12: -3 | AI12: 2 | AJ12: 4 | AK12: 3 | AM12: 0.5 | AN12: 2.5 | AO12: 1.5 | AP12: 2.5 | AQ12: 0 | AY12: -1.5
A13: 2025-04-04 | B13: 1 | C13: 6 | D13: 4 | F13: -1 | G13: 2 | H13: 6 | J13: 1 | K13: 4 | L13: 4 | N13: -1 | O13: 2 | P13: 6 | R13: -1 | S13: 4 | T13: 3 | V13: 1 | W13: 6 | X13: 1 | Z13: 1 | AA13: 5 | AB13: 1 | AE13: 2 | AF13: -4 | AG13: 0 | AH13: -4 | AI13: 1 | AJ13: 5 | AK13: 4 | AM13: 0 | AN13: 3 | AO13: 1 | AP13: 3 | AQ13: 0.5 | AY13: -1
A14: 2025-04-05 | B14: 1 | C14: 7 | D14: 4 | F14: 1 | G14: 3 | H14: 6 | J14: -1 | K14: 4 | L14: 5 | N14: -1 | O14: 2 | P14: 7 | S14: 4 | T14: 3 | V14: -1 | W14: 6 | X14: 2 | Z14: -1 | AA14: 5 | AB14: 2 | AE14: 3 | AF14: -3 | AG14: -1 | AH14: -5 | AI14: 1 | AJ14: 4 | AK14: 3 | AM14: 0 | AN14: 3 | AO14: 2 | AP14: 4 | AQ14: 1 | AY14: -2
A15: 2025-04-06 | B15: -1 | C15: 7 | D15: 5 | F15: -1 | G15: 3 | H15: 7 | J15: 1 | K15: 5 | L15: 5 | N15: 1 | O15: 3 | P15: 7 | R15: -2 | S15: 4 | T15: 5 | V15: 1 | W15: 7 | X15: 2 | Z15: 1 | AA15: 6 | AB15: 2 | AE15: 2 | AF15: -4 | AG15: 0 | AH15: -4 | AI15: -1 | AJ15: 5 | AK15: 4 | AM15: 0 | AN15: 3 | AO15: 1 | AP15: 3 | AQ15: 1.5 | AY15: -1
A16: 2025-04-07 | B16: 1 | C16: 8 | D16: 5 | F16: 1 | G16: 4 | H16: 7 | K16: 5 | L16: 5 | N16: 1 | O16: 4 | P16: 7 | R16: -1 | S16: 4 | T16: 6 | W16: 7 | X16: 2 | Z16: -1 | AA16: 6 | AB16: 3 | AE16: 3 | AF16: -3 | AG16: 0 | AH16: -3 | AI16: -2 | AJ16: 5 | AK16: 3 | AM16: 0 | AN16: 3 | AO16: 1.5 | AP16: 3 | AQ16: 2.5 | AY16: -1.5
A17: 2025-04-08 | B17: 1 | C17: 9 | D17: 5 | F17: 1 | G17: 5 | H17: 7 | J17: 1 | K17: 6 | L17: 5 | N17: -1 | O17: 4 | P17: 8 | R17: 1 | S17: 5 | T17: 6 | V17: -1 | W17: 7 | X17: 3 | Z17: 1 | AA17: 7 | AB17: 3 | AE17: 4 | AF17: -2 | AG17: 1 | AH17: -4 | AI17: -1 | AJ17: 4 | AK17: 4 | AM17: 0 | AN17: 3 | AO17: 1.5 | AP17: 4 | AQ17: 2.5 | AY17: -1.5
A18: 2025-04-09 | B18: -1 | C18: 9 | D18: 6 | F18: -1 | G18: 5 | H18: 8 | J18: 1 | K18: 7 | L18: 5 | N18: 1 | O18: 5 | P18: 8 | R18: -1 | S18: 5 | T18: 7 | V18: 1 | W18: 8 | X18: 3 | Z18: 1 | AA18: 8 | AB18: 3 | AE18: 3 | AF18: -3 | AG18: 2 | AH18: -3 | AI18: -2 | AJ18: 5 | AK18: 5 | AM18: 0 | AN18: 3 | AO18: 0.5 | AP18: 3 | AQ18: 2.5 | AY18: -0.5
A19: 2025-04-10 | C19: 9 | D19: 6 | G19: 5 | H19: 8 | J19: -1 | K19: 7 | L19: 6 | O19: 5 | P19: 8 | S19: 5 | T19: 7 | V19: -1 | W19: 8 | X19: 4 | AA19: 8 | AB19: 3 | AE19: 3 | AF19: -3 | AG19: 1 | AH19: -3 | AI19: -2 | AJ19: 4 | AK19: 5 | AM19: 0 | AN19: 3 | AO19: 1 | AP19: 3 | AQ19: 2.5 | AY19: -1
A20: 2025-04-11 | B20: -1 | C20: 9 | D20: 7 | F20: 1 | G20: 6 | H20: 8 | J20: 1 | K20: 8 | L20: 6 | N20: -1 | O20: 5 | P20: 9 | R20: 1 | S20: 6 | T20: 7 | V20: -1 | W20: 8 | X20: 5 | Z20: 1 | AA20: 9 | AB20: 3 | AE20: 2 | AF20: -2 | AG20: 2 | AH20: -4 | AI20: -1 | AJ20: 3 | AK20: 6 | AM20: 0 | AN20: 2 | AO20: 0 | AP20: 3 | AQ20: 1.5 | AY20: 0
A21: 2025-04-12 | B21: 1 | C21: 10 | D21: 7 | F21: 1 | G21: 7 | H21: 8 | J21: -1 | K21: 8 | L21: 7 | N21: -1 | O21: 5 | P21: 10 | R21: -1 | S21: 6 | T21: 8 | V21: 1 | W21: 9 | X21: 5 | Z21: 1 | AA21: 10 | AB21: 3 | AE21: 3 | AF21: -1 | AG21: 1 | AH21: -5 | AI21: -2 | AJ21: 4 | AK21: 7 | AM21: 0 | AN21: 2 | AO21: 1 | AP21: 4 | AQ21: 2.5 | AY21: -1
A22: 2025-04-13 | B22: 1 | C22: 11 | D22: 7 | F22: 1 | G22: 8 | H22: 8 | J22: -1 | K22: 8 | L22: 8 | N22: -1 | O22: 5 | P22: 11 | R22: 1 | S22: 7 | T22: 8 | V22: -1 | W22: 9 | X22: 6 | Z22: -1 | AA22: 10 | AB22: 4 | AE22: 4 | AF22: 0 | AG22: 0 | AH22: -6 | AI22: -1 | AJ22: 3 | AK22: 6 | AM22: 0 | AN22: 2 | AO22: 2 | AP22: 5 | AQ22: 2.5 | AY22: -2
A23: 2025-04-14 | B23: -1 | C23: 11 | D23: 8 | G23: 8 | H23: 8 | J23: -1 | K23: 8 | L23: 9 | N23: 1 | O23: =O22+IF(N23>0,N23,0) -> 6 | P23: =P22-IF(N23<0,N23,0) -> 11 | R23: 1 | S23: =S22+IF(R23>0,R23,0) -> 8 | T23: =T22-IF(R23<0,R23,0) -> 8 | V23: -1 | W23: 9 | X23: 7 | Z23: -1 | AA23: 10 | AB23: 5 | AE23: 3 | AF23: 0 | AG23: -1 | AH23: -5 | AI23: 0 | AJ23: 2 | AK23: 5 | AM23: 0 | AN23: 1.5 | AO23: 2 | AP23: 4 | AQ23: 1.5 | AY23: -2
A24: 2025-04-15 | B24: 1 | C24: 12 | D24: 8 | F24: 1 | G24: 9 | H24: 8 | J24: 1 | K24: 9 | L24: 9 | N24: -1 | O24: 6 | P24: 12 | R24: -1 | S24: 8 | T24: 9 | V24: 1 | W24: 10 | X24: 7 | Z24: -1 | AA24: 10 | AB24: 6 | AE24: 4 | AF24: 1 | AG24: 0 | AH24: -6 | AI24: -1 | AJ24: 3 | AK24: 4 | AM24: 0 | AN24: 1.5 | AO24: 2 | AP24: 5 | AQ24: 2.5 | AY24: -2
A25: 2025-04-16 | B25: -1 | C25: 12 | D25: 9 | F25: -1 | G25: 9 | H25: 9 | J25: 1 | K25: 10 | L25: 9 | N25: 1 | O25: 7 | P25: 12 | R25: 1 | S25: 9 | T25: 9 | V25: -1 | W25: 10 | X25: 8 | Z25: 1 | AA25: 11 | AB25: 6 | AE25: 3 | AF25: 0 | AG25: 1 | AH25: -5 | AI25: 0 | AJ25: 2 | AK25: 5 | AM25: 0 | AN25: 1.5 | AO25: 1 | AP25: 4 | AQ25: 1.5 | AY25: -1
A26: 2025-04-17 | C26: =C25+IF(B26>0,B26,0) -> 12 | D26: =D25-IF(B26<0,B26,0) -> 9 | F26: -1 | G26: 9 | H26: 10 | K26: 10 | L26: 9 | N26: 1 | O26: 8 | P26: 12 | R26: -1 | S26: 9 | T26: 10 | V26: 1 | W26: 11 | X26: 8 | AA26: 11 | AB26: 6 | AE26: 3 | AF26: -1 | AG26: 1 | AH26: -4 | AI26: -1 | AJ26: 3 | AK26: 5 | AM26: 0 | AN26: 2 | AO26: 1 | AP26: 3.5 | AQ26: 2 | AY26: -1
A27: 2025-04-18 | B27: 1 | C27: 13 | D27: 9 | F27: 1 | G27: 10 | H27: 10 | J27: 1 | K27: 11 | L27: 9 | N27: -1 | O27: 8 | P27: 13 | R27: -1 | S27: 9 | T27: 11 | V27: 1 | W27: 12 | X27: 8 | Z27: 1 | AA27: 12 | AB27: 6 | AE27: 4 | AF27: 0 | AG27: 2 | AH27: -5 | AI27: -2 | AJ27: 4 | AK27: 6 | AM27: 0 | AN27: 2 | AO27: 1 | AP27: 4.5 | AQ27: 3 | AY27: -1
A28: 2025-04-19 | B28: 1 | C28: 14 | D28: 9 | F28: -1 | G28: 10 | H28: 11 | J28: -1 | K28: 11 | L28: 10 | N28: -1 | O28: 8 | P28: 14 | R28: -1 | S28: 9 | T28: 12 | V28: 1 | W28: 13 | X28: 8 | Z28: 1 | AA28: 13 | AB28: 6 | AE28: 5 | AF28: -1 | AG28: 1 | AH28: -6 | AI28: -3 | AJ28: 5 | AK28: 7 | AM28: 0 | AN28: 3 | AO28: 2 | AP28: 5.5 | AQ28: 4 | AY28: -2
A29: 2025-04-20 | B29: -1 | C29: 14 | D29: 10 | F29: 1 | G29: 11 | H29: 11 | J29: 1 | K29: 12 | L29: 10 | N29: -1 | O29: 8 | P29: 15 | R29: -1 | S29: 9 | T29: 13 | V29: -1 | W29: 13 | X29: 9 | Z29: 1 | AA29: 14 | AB29: 6 | AE29: 4 | AF29: 0 | AG29: 2 | AH29: -7 | AI29: -4 | AJ29: 4 | AK29: 8 | AM29: 0 | AN29: 2 | AO29: 1 | AP29: 5.5 | AQ29: 4 | AY29: -1
A30: 2025-04-21 | C30: 14 | D30: 10 | F30: -1 | G30: 11 | H30: 12 | J30: -1 | K30: 12 | L30: 11 | O30: =O29+IF(N30>0,N30,0) -> 8 | P30: =P29-IF(N30<0,N30,0) -> 15 | R30: -1 | S30: 9 | T30: 14 | V30: -1 | W30: 13 | X30: 10 | Z30: -1 | AA30: 14 | AB30: 7 | AE30: 4 | AF30: -1 | AG30: 1 | AH30: -7 | AI30: -5 | AJ30: 3 | AK30: 7 | AM30: 0 | AN30: 2.5 | AO30: 1.5 | AP30: 5.5 | AQ30: 4.5 | AY30: -1.5
A31: 2025-04-22 | B31: 1 | C31: 15 | D31: 10 | F31: -1 | G31: 11 | H31: 13 | J31: 1 | K31: 13 | L31: 11 | N31: 1 | O31: 9 | P31: 15 | R31: 1 | S31: 10 | T31: 14 | V31: -1 | W31: 13 | X31: 11 | Z31: -1 | AA31: 14 | AB31: 8 | AE31: 5 | AF31: -2 | AG31: 2 | AH31: -6 | AI31: -4 | AJ31: 2 | AK31: 6 | AM31: 0 | AN31: 3.5 | AO31: 1.5 | AP31: 5.5 | AQ31: 4.5 | AY31: -1.5
A32: 2025-04-23 | B32: 1 | C32: 16 | D32: 10 | F32: 1 | G32: 12 | H32: 13 | J32: -1 | K32: 13 | L32: 12 | N32: 1 | O32: 10 | P32: 15 | R32: -1 | S32: 10 | T32: 15 | V32: -1 | W32: 13 | X32: 12 | Z32: 1 | AA32: 15 | AB32: 8 | AE32: 6 | AF32: -1 | AG32: 1 | AH32: -5 | AI32: -5 | AJ32: 1 | AK32: 7 | AM32: 0 | AN32: 3.5 | AO32: 2.5 | AP32: 5.5 | AQ32: 5.5 | AY32: -2.5
A33: 2025-04-24 | C33: 16 | D33: 10 | G33: 12 | H33: 13 | J33: -1 | K33: 13 | L33: 13 | N33: -1 | O33: 10 | P33: 16 | S33: 10 | T33: 15 | W33: 13 | X33: 12 | Z33: 1 | AA33: 16 | AB33: 8 | AE33: 6 | AF33: -1 | AG33: 0 | AH33: -6 | AI33: -5 | AJ33: 1 | AK33: 8 | AM33: 0 | AN33: 3.5 | AO33: 3 | AP33: 6 | AQ33: 5.5 | AY33: -3
A34: 2025-04-25 | B34: 1 | C34: 17 | D34: 10 | F34: 1 | G34: 13 | H34: 13 | J34: -1 | K34: 13 | L34: 14 | N34: 1 | O34: =O33+IF(N34>0,N34,0) -> 11 | P34: =P33-IF(N34<0,N34,0) -> 16 | R34: 1 | S34: 11 | T34: 15 | V34: -1 | W34: 13 | X34: 13 | Z34: 1 | AA34: 17 | AB34: 8 | AE34: 7 | AF34: 0 | AG34: -1 | AH34: -5 | AI34: -4 | AJ34: 0 | AK34: 9 | AM34: 0 | AN34: 3.5 | AO34: 4 | AP34: 6 | AQ34: 5.5 | AY34: =IF(AO34 = 0, MIN(AM34:AN34, AP34:AQ34), 0-AO34) -> -4
A35: 2025-04-26 | B35: -1 | C35: 17 | D35: 11 | F35: 1 | G35: 14 | H35: 13 | J35: -1 | K35: 13 | L35: 15 | N35: -1 | O35: 11 | P35: 17 | R35: 1 | S35: 12 | T35: 15 | V35: 1 | W35: 14 | X35: 13 | Z35: -1 | AA35: 17 | AB35: 9 | AE35: =C35-D35 -> 6 | AF35: =G35-H35 -> 1 | AG35: =K35-L35 -> -2 | AH35: =O35-P35 -> -6 | AI35: =S35-T35 -> -3 | AJ35: 1 | AK35: =AA35-AB35 -> 8 | AM35: 0 | AN35: 2.5 | AO35: 4 | AP35: 6 | AQ35: 4.5 | AY35: -4
A36: 2025-04-27 | B36: -1 | C36: 17 | D36: 12 | F36: 1 | G36: 15 | H36: 13 | J36: 1 | K36: 14 | L36: 15 | N36: -1 | O36: 11 | P36: 18 | R36: -1 | S36: =S35+IF(R36>0,R36,0) -> 12 | T36: =T35-IF(R36<0,R36,0) -> 16 | V36: 1 | W36: =W35+IF(V36>0,V36,0) -> 15 | X36: =X35-IF(V36<0,V36,0) -> 13 | Z36: -1 | AA36: 17 | AB36: 10 | AE36: 5 | AF36: 2 | AG36: -1 | AH36: -7 | AI36: -4 | AJ36: 2 | AK36: 7 | AM36: 0 | AN36: 1.5 | AO36: 3 | AP36: 6 | AQ36: =(MAX($AE36:$AI36)-AI36)/2 -> 4.5 | AY36: -3
A37: 2025-04-28 | C37: 17 | D37: 12 | F37: 1 | G37: 16 | H37: 13 | K37: 14 | L37: 15 | O37: 11 | P37: 18 | R37: -1 | S37: =S36+IF(R37>0,R37,0) -> 12 | T37: =T36-IF(R37<0,R37,0) -> 17 | W37: =W36+IF(V37>0,V37,0) -> 15 | X37: =X36-IF(V37<0,V37,0) -> 13 | Z37: -1 | AA37: 17 | AB37: 11 | AE37: 5 | AF37: 3 | AG37: -1 | AH37: -7 | AI37: -5 | AJ37: 2 | AK37: 6 | AM37: 0 | AN37: 1 | AO37: 3 | AP37: 6 | AQ37: 5 | AY37: -3
A38: 2025-04-29 | B38: 1 | C38: 18 | D38: 12 | G38: 16 | H38: 13 | J38: 1 | K38: 15 | L38: 15 | N38: -1 | O38: 11 | P38: 19 | S38: 12 | T38: 17 | V38: 1 | W38: 16 | X38: 13 | Z38: 1 | AA38: 18 | AB38: 11 | AE38: 6 | AF38: 3 | AG38: 0 | AH38: -8 | AI38: -5 | AJ38: 3 | AK38: 7 | AM38: 0 | AN38: 1.5 | AO38: 3 | AP38: 7 | AQ38: 5.5 | AY38: -3
A39: 2025-04-30 | B39: -1 | C39: 18 | D39: 13 | F39: -2 | G39: 16 | H39: 15 | J39: 1 | K39: =K38+IF(J39>0,J39,0) -> 16 | L39: =L38-IF(J39<0,J39,0) -> 15 | N39: 1 | O39: 12 | P39: 19 | R39: 2 | S39: =S38+IF(R39>0,R39,0) -> 14 | T39: =T38-IF(R39<0,R39,0) -> 17 | V39: 1 | W39: 17 | X39: 13 | Z39: 1 | AA39: 19 | AB39: 11 | AE39: 5 | AF39: 1 | AG39: 1 | AH39: -7 | AI39: -3 | AJ39: 4 | AK39: 8 | AM39: 0 | AN39: 2 | AO39: 2 | AP39: 6 | AQ39: 4 | AY39: -2
A40: 2025-05-01 | B40: 1 | C40: 19 | D40: 13 | F40: 1 | G40: 17 | H40: 15 | J40: -1 | K40: 16 | L40: 16 | N40: -1 | O40: 12 | P40: 20 | R40: -1 | S40: 14 | T40: 18 | V40: -1 | W40: 17 | X40: 14 | AA40: 19 | AB40: 11 | AE40: 6 | AF40: 2 | AG40: 0 | AH40: -8 | AI40: -4 | AJ40: 3 | AK40: 8 | AM40: 0 | AN40: 2 | AO40: 3 | AP40: 7 | AQ40: 5 | AY40: -3
A41: 2025-05-02 | B41: 1 | C41: 20 | D41: 13 | F41: 1 | G41: 18 | H41: 15 | J41: -1 | K41: 16 | L41: 17 | N41: -1 | O41: 12 | P41: 21 | R41: -1 | S41: 14 | T41: 19 | V41: 1 | W41: 18 | X41: 14 | Z41: 1 | AA41: 20 | AB41: 11 | AE41: 7 | AF41: 3 | AG41: -1 | AH41: -9 | AI41: -5 | AJ41: 4 | AK41: 9 | AM41: 0 | AN41: 2 | AO41: 4 | AP41: 8 | AQ41: 6 | AY41: -4
A42: 2025-05-03 | B42: 1 | C42: 21 | D42: 13 | F42: -1 | G42: 18 | H42: 16 | J42: -1 | K42: 16 | L42: 18 | N42: -1 | O42: 12 | P42: 22 | S42: 14 | T42: 19 | V42: 1 | W42: 19 | X42: 14 | Z42: -1 | AA42: 20 | AB42: 12 | AE42: 8 | AF42: 2 | AG42: -2 | AH42: -10 | AI42: -5 | AJ42: 5 | AK42: 8 | AM42: 0 | AN42: 3 | AO42: 5 | AP42: 9 | AQ42: 6.5 | AY42: -5
A43: 2025-05-04 | B43: -1 | C43: 21 | D43: 14 | F43: -1 | G43: 18 | H43: 17 | J43: 1 | K43: 17 | L43: 18 | N43: -1 | O43: 12 | P43: 23 | R43: 2 | S43: 16 | T43: 19 | V43: -1 | W43: 19 | X43: 15 | Z43: -1 | AA43: 20 | AB43: 13 | AE43: 7 | AF43: 1 | AG43: -1 | AH43: -11 | AI43: -3 | AJ43: 4 | AK43: 7 | AM43: 0 | AN43: 3 | AO43: 4 | AP43: 9 | AQ43: 5 | AY43: -4
A44: 2025-05-05 | B44: 1 | C44: 22 | D44: 14 | F44: -1 | G44: 18 | H44: 18 | J44: 1 | K44: 18 | L44: 18 | N44: -1 | O44: 12 | P44: 24 | R44: 1 | S44: 17 | T44: 19 | W44: 19 | X44: 15 | Z44: -1 | AA44: 20 | AB44: 14 | AE44: 8 | AF44: 0 | AG44: 0 | AH44: -12 | AI44: -2 | AJ44: 4 | AK44: 6 | AM44: 0 | AN44: 4 | AO44: 4 | AP44: 10 | AQ44: 5 | AY44: -4
A45: 2025-05-06 | B45: -1 | C45: 22 | D45: 15 | F45: -1 | G45: 18 | H45: 19 | J45: 1 | K45: =K44+IF(J45>0,J45,0) -> 19 | L45: =L44-IF(J45<0,J45,0) -> 18 | N45: -1 | O45: 12 | P45: 25 | R45: 1 | S45: =S44+IF(R45>0,R45,0) -> 18 | T45: =T44-IF(R45<0,R45,0) -> 19 | V45: 1 | W45: 20 | X45: 15 | Z45: 1 | AA45: 21 | AB45: 14 | AE45: 7 | AF45: -1 | AG45: 1 | AH45: -13 | AI45: -1 | AJ45: 5 | AK45: 7 | AM45: 0 | AN45: 4 | AO45: 3 | AP45: 10 | AQ45: 4 | AY45: -3
A46: 2025-05-07 | B46: -1 | C46: 22 | D46: 16 | F46: 1 | G46: 19 | H46: 19 | J46: -1 | K46: 19 | L46: 19 | N46: -1 | O46: 12 | P46: 26 | R46: 1 | S46: 19 | T46: 19 | V46: 1 | W46: 21 | X46: 15 | Z46: -1 | AA46: 21 | AB46: 15 | AE46: 6 | AF46: 0 | AG46: 0 | AH46: -14 | AI46: 0 | AJ46: 6 | AK46: 6 | AM46: 0 | AN46: 3 | AO46: 3 | AP46: 10 | AQ46: 3 | AY46: -3
A47: 2025-05-08 | C47: 22 | D47: 16 | F47: -1 | G47: 19 | H47: 20 | K47: 19 | L47: 19 | O47: 12 | P47: 26 | S47: 19 | T47: 19 | V47: 1 | W47: 22 | X47: 15 | Z47: 1 | AA47: 22 | AB47: 15 | AE47: 6 | AF47: -1 | AG47: 0 | AH47: -14 | AI47: 0 | AJ47: 7 | AK47: 7 | AM47: 0 | AN47: 3.5 | AO47: 3 | AP47: 10 | AQ47: 3 | AY47: -3
A48: 2025-05-09 | B48: -1 | C48: 22 | D48: 17 | F48: -1 | G48: 19 | H48: 21 | J48: -1 | K48: 19 | L48: 20 | N48: 1 | O48: 13 | P48: 26 | R48: 1 | S48: 20 | T48: 19 | V48: -1 | W48: 22 | X48: 16 | Z48: 1 | AA48: 23 | AB48: 15 | AE48: 5 | AF48: -2 | AG48: -1 | AH48: -13 | AI48: 1 | AJ48: 6 | AK48: 8 | AM48: 0 | AN48: 3.5 | AO48: 3 | AP48: 9 | AQ48: 2 | AY48: -3
A49: 2025-05-10 | B49: 1 | C49: 23 | D49: 17 | F49: 1 | G49: 20 | H49: 21 | J49: -1 | K49: 19 | L49: 21 | N49: -1 | O49: 13 | P49: 27 | R49: 1 | S49: 21 | T49: 19 | V49: 1 | W49: 23 | X49: 16 | Z49: 1 | AA49: 24 | AB49: 15 | AE49: 6 | AF49: -1 | AG49: -2 | AH49: -14 | AI49: 2 | AJ49: 7 | AK49: 9 | AM49: 0 | AN49: 3.5 | AO49: 4 | AP49: 10 | AQ49: 2 | AY49: -4
A50: 2025-05-11 | B50: -1 | C50: 23 | D50: 18 | F50: -1 | G50: 20 | H50: 22 | J50: 1 | K50: 20 | L50: 21 | N50: 1 | O50: 14 | P50: 27 | R50: 1 | S50: 22 | T50: 19 | V50: 1 | W50: 24 | X50: 16 | Z50: -1 | AA50: 24 | AB50: 16 | AE50: 5 | AF50: -2 | AG50: -1 | AH50: -13 | AI50: 3 | AJ50: 8 | AK50: 8 | AM50: 0 | AN50: 3.5 | AO50: 3 | AP50: 9 | AQ50: 1 | AY50: -3
A51: 2025-05-12 | B51: 1 | C51: 24 | D51: 18 | G51: 20 | H51: 22 | J51: -1 | K51: 20 | L51: 22 | N51: -1 | O51: 14 | P51: 28 | R51: 1 | S51: 23 | T51: 19 | V51: -1 | W51: 24 | X51: 17 | Z51: -1 | AA51: 24 | AB51: 17 | AE51: 6 | AF51: -2 | AG51: -2 | AH51: -14 | AI51: 4 | AJ51: 7 | AK51: 7 | AM51: 0 | AN51: 4 | AO51: 4 | AP51: 10 | AQ51: 1 | AY51: -4
A52: 2025-05-13 | B52: 1 | C52: 25 | D52: 18 | F52: -1 | G52: 20 | H52: 23 | J52: -1 | K52: 20 | L52: 23 | N52: -1 | O52: 14 | P52: 29 | S52: 23 | T52: 19 | W52: 24 | X52: 17 | Z52: 1 | AA52: 25 | AB52: 17 | AE52: 7 | AF52: -3 | AG52: -3 | AH52: -15 | AI52: 4 | AJ52: 7 | AK52: 8 | AM52: 0 | AN52: 5 | AO52: 5 | AP52: 11 | AQ52: 1.5 | AY52: -5
A53: 2025-05-14 | B53: -1 | C53: 25 | D53: 19 | F53: -1 | G53: 20 | H53: 24 | J53: 1 | K53: 21 | L53: 23 | N53: 1 | O53: 15 | P53: 29 | R53: 0 | S53: 24 | T53: 20 | V53: 0 | W53: 25 | X53: 18 | Z53: 1 | AA53: 26 | AB53: 17 | AE53: 6 | AF53: -4 | AG53: -2 | AH53: -14 | AI53: 4 | AJ53: 7 | AK53: 9 | AM53: 0 | AN53: 5 | AO53: 4 | AP53: 10 | AQ53: 1 | AY53: -4
A54: 2025-05-15 | C54: 25 | D54: 19 | F54: 1 | G54: 21 | H54: 24 | K54: 21 | L54: 23 | O54: 15 | P54: 29 | S54: 24 | T54: 20 | W54: 25 | X54: 18 | AA54: 26 | AB54: 17 | AE54: 6 | AF54: -3 | AG54: -2 | AH54: -14 | AI54: 4 | AJ54: 7 | AK54: 9 | AM54: 0 | AN54: 4.5 | AO54: 4 | AP54: 10 | AQ54: 1 | AY54: -4
A55: 2025-05-16 | B55: 1 | C55: 26 | D55: 19 | F55: 1 | G55: 22 | H55: 24 | J55: -1 | K55: 21 | L55: 24 | N55: -1 | O55: 15 | P55: 30 | R55: 1 | S55: 25 | T55: 20 | V55: 1 | W55: 26 | X55: 18 | Z55: -1 | AA55: 26 | AB55: 18 | AE55: 7 | AF55: -2 | AG55: -3 | AH55: -15 | AI55: 5 | AJ55: 8 | AK55: 8 | AM55: 0 | AN55: 4.5 | AO55: 5 | AP55: 11 | AQ55: 1 | AY55: -5
A56: 2025-05-17 | B56: 1 | C56: 27 | D56: 19 | F56: 1 | G56: 23 | H56: 24 | J56: -1 | K56: 21 | L56: 25 | N56: -1 | O56: 15 | P56: 31 | R56: 1 | S56: 26 | T56: 20 | V56: 1 | W56: 27 | X56: 18 | Z56: 1 | AA56: 27 | AB56: 18 | AE56: 8 | AF56: -1 | AG56: -4 | AH56: -16 | AI56: 6 | AJ56: 9 | AK56: 9 | AM56: 0 | AN56: 4.5 | AO56: 6 | AP56: 12 | AQ56: 1 | AY56: -6
A57: 2025-05-18 | B57: 1 | C57: 28 | D57: 19 | F57: 1 | G57: 24 | H57: 24 | J57: 1 | K57: 22 | L57: 25 | N57: -1 | O57: 15 | P57: 32 | R57: -1 | S57: 26 | T57: 21 | V57: 1 | W57: 28 | X57: 18 | Z57: -1 | AA57: 27 | AB57: 19 | AE57: 9 | AF57: 0 | AG57: -3 | AH57: -17 | AI57: 5 | AJ57: 10 | AK57: 8 | AM57: 0 | AN57: 4.5 | AO57: 6 | AP57: 13 | AQ57: 2 | AY57: -6
A58: 2025-05-19 | B58: -1 | C58: 28 | D58: 20 | F58: 1 | G58: 25 | H58: 24 | J58: 1 | K58: 23 | L58: 25 | N58: -1 | O58: 15 | P58: 33 | R58: 1 | S58: 27 | T58: 21 | V58: 1 | W58: 29 | X58: 18 | Z58: -1 | AA58: 27 | AB58: 20 | AE58: 8 | AF58: 1 | AG58: -2 | AH58: -18 | AI58: 6 | AJ58: 11 | AK58: 7 | AM58: 0 | AN58: 3.5 | AO58: 5 | AP58: 13 | AQ58: 1 | AY58: -5
A59: 2025-05-20 | B59: 1 | C59: 29 | D59: 20 | F59: -1 | G59: 25 | H59: 25 | J59: 1 | K59: 24 | L59: 25 | N59: 1 | O59: 16 | P59: 33 | R59: -1 | S59: 27 | T59: 22 | V59: 1 | W59: 30 | X59: 18 | Z59: 1 | AA59: 28 | AB59: 20 | AE59: 9 | AF59: 0 | AG59: -1 | AH59: -17 | AI59: 5 | AJ59: 12 | AK59: 8 | AM59: 0 | AN59: 4.5 | AO59: 5 | AP59: 13 | AQ59: 2 | AY59: -5
A60: 2025-05-21 | B60: 1 | C60: 30 | D60: 20 | F60: -1 | G60: 25 | H60: 26 | J60: -1 | K60: 24 | L60: 26 | N60: 1 | O60: 17 | P60: 33 | R60: -1 | S60: 27 | T60: 23 | V60: 1 | W60: 31 | X60: 18 | Z60: -1 | AA60: 28 | AB60: 21 | AE60: 10 | AF60: -1 | AG60: -2 | AH60: -16 | AI60: 4 | AJ60: 13 | AK60: 7 | AM60: 0 | AN60: 5.5 | AO60: 6 | AP60: 13 | AQ60: 3 | AY60: -6
A61: 2025-05-22 | C61: 30 | D61: 20 | G61: 25 | H61: 26 | J61: 1 | K61: 25 | L61: 26 | N61: -1 | O61: 17 | P61: 34 | S61: 27 | T61: 23 | V61: 1 | W61: 32 | X61: 18 | AA61: 28 | AB61: 21 | AE61: 10 | AF61: -1 | AG61: -1 | AH61: -17 | AI61: 4 | AJ61: 14 | AK61: 7 | AM61: 0 | AN61: 5.5 | AO61: 5.5 | AP61: 13.5 | AQ61: 3 | AY61: -5.5
A62: 2025-05-23 | B62: 1 | C62: 31 | D62: 20 | F62: -1 | G62: 25 | H62: 27 | J62: -1 | K62: 25 | L62: 27 | N62: 1 | O62: 18 | P62: 34 | R62: 1 | S62: 28 | T62: 23 | V62: 1 | W62: 33 | X62: 18 | Z62: 1 | AA62: 29 | AB62: 21 | AE62: 11 | AF62: -2 | AG62: -2 | AH62: -16 | AI62: 5 | AJ62: 15 | AK62: 8 | AM62: 0 | AN62: 6.5 | AO62: 6.5 | AP62: 13.5 | AQ62: 3 | AY62: -6.5
A63: 2025-05-24 | B63: -1 | C63: 31 | D63: 21 | F63: 1 | G63: 26 | H63: 27 | J63: -1 | K63: 25 | L63: 28 | N63: 1 | O63: 19 | P63: 34 | R63: 1 | S63: 29 | T63: 23 | V63: 1 | W63: 34 | X63: 18 | Z63: 1 | AA63: 30 | AB63: 21 | AE63: 10 | AF63: -1 | AG63: -3 | AH63: -15 | AI63: 6 | AJ63: 16 | AK63: 9 | AM63: 0 | AN63: 5.5 | AO63: 6.5 | AP63: 12.5 | AQ63: 2 | AY63: -6.5
A64: 2025-05-25 | B64: 1 | C64: 32 | D64: 21 | F64: -1 | G64: 26 | H64: 28 | J64: 1 | K64: 26 | L64: 28 | N64: -1 | O64: 19 | P64: 35 | R64: 1 | S64: 30 | T64: 23 | V64: -1 | W64: 34 | X64: 19 | Z64: -1 | AA64: 30 | AB64: 22 | AE64: 11 | AF64: -2 | AG64: -2 | AH64: -16 | AI64: 7 | AJ64: 15 | AK64: 8 | AM64: 0 | AN64: 6.5 | AO64: 6.5 | AP64: 13.5 | AQ64: 2 | AY64: -6.5
A65: 2025-05-26 | B65: 1 | C65: 33 | D65: 21 | F65: 1 | G65: 27 | H65: 28 | J65: 1 | K65: =K64+IF(J65>0,J65,0) -> 27 | L65: =L64-IF(J65<0,J65,0) -> 28 | N65: -1 | O65: =O64+IF(N65>0,N65,0) -> 19 | P65: =P64-IF(N65<0,N65,0) -> 36 | R65: -1 | S65: 30 | T65: 24 | W65: 34 | X65: 19 | Z65: 1 | AA65: 31 | AB65: 22 | AE65: 12 | AF65: -1 | AG65: -1 | AH65: -17 | AI65: 6 | AJ65: 15 | AK65: 9 | AM65: 0 | AN65: 6.5 | AO65: 6.5 | AP65: 14.5 | AQ65: 3 | AY65: -6.5
A66: 2025-05-27 | B66: 1 | C66: 34 | D66: 21 | F66: 1 | G66: 28 | H66: 28 | J66: 1 | K66: 28 | L66: 28 | N66: 1 | O66: 20 | P66: 36 | R66: 1 | S66: 31 | T66: 24 | V66: 1 | W66: 35 | X66: 19 | Z66: -1 | AA66: 31 | AB66: 23 | AE66: 13 | AF66: 0 | AG66: 0 | AH66: -16 | AI66: 7 | AJ66: 16 | AK66: 8 | AM66: 0 | AN66: 6.5 | AO66: 6.5 | AP66: 14.5 | AQ66: 3 | AY66: =IF(AO66 = 0, MIN(AM66:AN66, AP66:AQ66), 0-AO66) -> -6.5
A67: 2025-05-28 | B67: 1 | C67: 35 | D67: 21 | F67: -1 | G67: 28 | H67: 29 | J67: 1 | K67: 29 | L67: 28 | N67: 1 | O67: 21 | P67: 36 | R67: 1 | S67: 32 | T67: 24 | W67: 35 | X67: 19 | Z67: 1 | AA67: 32 | AB67: 23 | AE67: =C67-D67 -> 14 | AF67: =G67-H67 -> -1 | AG67: =K67-L67 -> 1 | AH67: =O67-P67 -> -15 | AI67: =S67-T67 -> 8 | AJ67: 16 | AK67: =AA67-AB67 -> 9 | AM67: 0 | AN67: 7.5 | AO67: 6.5 | AP67: 14.5 | AQ67: 3 | AY67: -6.5
A68: 2025-05-29 | C68: 35 | D68: 21 | G68: 28 | H68: 29 | K68: 29 | L68: 28 | O68: 21 | P68: 36 | S68: 32 | T68: 24 | V68: 0 | W68: 36 | X68: 20 | Z68: 1 | AA68: =AA67+IF(Z68>0,Z68,0) -> 33 | AB68: =AB67-IF(Z68<0,Z68,0) -> 23 | AE68: 14 | AF68: -1 | AG68: 1 | AH68: -15 | AI68: 8 | AJ68: =W68-X68 -> 16 | AK68: 10 | AM68: =(MAX($AE68:$AI68)-AE68)/2 -> 0 | AN68: =(MAX($AE68:$AI68)-AF68)/2 -> 7.5 | AO68: =(MAX($AE68:$AI68)-AG68)/2 -> 6.5 | AP68: =(MAX($AE68:$AI68)-AH68)/2 -> 14.5 | AQ68: =(MAX($AE68:$AI68)-AI68)/2 -> 3 | AY68: -6.5
A69: 2025-05-30 | B69: -1 | C69: 35 | D69: 22 | F69: 1 | G69: 29 | H69: 29 | J69: 1 | K69: 30 | L69: 28 | N69: -1 | O69: 21 | P69: 37 | R69: -1 | S69: 32 | T69: 25 | V69: -1 | W69: 36 | X69: 21 | Z69: 1 | AA69: 34 | AB69: 23 | AE69: 13 | AF69: 0 | AG69: 2 | AH69: -16 | AI69: 7 | AJ69: 15 | AK69: 11 | AM69: 0 | AN69: 6.5 | AO69: 5.5 | AP69: 14.5 | AQ69: 3 | AY69: -5.5
A70: 2025-05-31 | B70: 1 | C70: 36 | D70: 22 | F70: -1 | G70: 29 | H70: 30 | J70: 1 | K70: 31 | L70: 28 | N70: 1 | O70: 22 | P70: 37 | R70: 1 | S70: 33 | T70: 25 | V70: -1 | W70: 36 | X70: 22 | Z70: 1 | AA70: 35 | AB70: 23 | AE70: 14 | AF70: -1 | AG70: 3 | AH70: -15 | AI70: 8 | AJ70: 14 | AK70: 12 | AM70: 0 | AN70: 7.5 | AO70: 5.5 | AP70: 14.5 | AQ70: 3 | AY70: -5.5
A71: 2025-06-01 | B71: 1 | C71: 37 | D71: 22 | F71: -1 | G71: 29 | H71: 31 | J71: 1 | K71: 32 | L71: 28 | N71: -1 | O71: 22 | P71: 38 | R71: -1 | S71: 33 | T71: 26 | V71: -1 | W71: 36 | X71: 23 | Z71: 1 | AA71: 36 | AB71: 23 | AE71: 15 | AF71: -2 | AG71: 4 | AH71: -16 | AI71: 7 | AJ71: 13 | AK71: 13 | AM71: 0 | AN71: 8.5 | AO71: 5.5 | AP71: 15.5 | AQ71: 4 | AY71: -5.5
A72: 2025-06-02 | C72: 37 | D72: 22 | F72: -1 | G72: 29 | H72: 32 | J72: 1 | K72: 33 | L72: 28 | O72: 22 | P72: 38 | S72: 33 | T72: 26 | W72: 36 | X72: 23 | Z72: -1 | AA72: 36 | AB72: 24 | AE72: 15 | AF72: -3 | AG72: 5 | AH72: -16 | AI72: 7 | AJ72: 13 | AK72: 12 | AM72: 0 | AN72: 9 | AO72: 5 | AP72: 15.5 | AQ72: 4 | AY72: -5
A73: 2025-06-03 | B73: 1 | C73: =C72+IF(B73>0,B73,0) -> 38 | D73: =D72-IF(B73<0,B73,0) -> 22 | F73: 1 | G73: =G72+IF(F73>0,F73,0) -> 30 | H73: =H72-IF(F73<0,F73,0) -> 32 | J73: -1 | K73: 33 | L73: 29 | N73: -1 | O73: 22 | P73: 39 | R73: -1 | S73: 33 | T73: 27 | V73: 1 | W73: 37 | X73: 23 | Z73: -1 | AA73: 36 | AB73: 25 | AE73: 16 | AF73: -2 | AG73: 4 | AH73: -17 | AI73: 6 | AJ73: 14 | AK73: 11 | AM73: 0 | AN73: 9 | AO73: 6 | AP73: 16.5 | AQ73: 5 | AY73: -6
A74: 2025-06-04 | B74: -1 | C74: 38 | D74: 23 | F74: -1 | G74: 30 | H74: 33 | J74: 1 | K74: =K73+IF(J74>0,J74,0) -> 34 | L74: =L73-IF(J74<0,J74,0) -> 29 | N74: 1 | O74: 23 | P74: 39 | S74: 33 | T74: 27 | V74: -1 | W74: 37 | X74: 24 | Z74: -1 | AA74: 36 | AB74: 26 | AE74: 15 | AF74: -3 | AG74: 5 | AH74: -16 | AI74: 6 | AJ74: 13 | AK74: 10 | AM74: 0 | AN74: 9 | AO74: 5 | AP74: 15.5 | AQ74: 4.5 | AY74: -5
A75: 2025-06-05 | B75: 1 | C75: 39 | D75: 23 | G75: 30 | H75: 33 | K75: =K74+IF(J75>0,J75,0) -> 34 | L75: =L74-IF(J75<0,J75,0) -> 29 | N75: -1 | O75: 23 | P75: 40 | R75: 0 | S75: 34 | T75: 28 | V75: -1 | W75: 37 | X75: 25 | AA75: 36 | AB75: 26 | AE75: 16 | AF75: -3 | AG75: 5 | AH75: -17 | AI75: 6 | AJ75: 12 | AK75: 10 | AM75: 0 | AN75: 9.5 | AO75: 5.5 | AP75: 16.5 | AQ75: 5 | AY75: -5.5
A76: 2025-06-06 | B76: -1 | C76: 39 | D76: 24 | F76: 1 | G76: 31 | H76: 33 | J76: -1 | K76: 34 | L76: 30 | N76: 1 | O76: 24 | P76: 40 | R76: 1 | S76: 35 | T76: 28 | V76: -1 | W76: 37 | X76: 26 | Z76: 1 | AA76: 37 | AB76: 26 | AE76: 15 | AF76: -2 | AG76: 4 | AH76: -16 | AI76: 7 | AJ76: 11 | AK76: 11 | AM76: 0 | AN76: 8.5 | AO76: 5.5 | AP76: 15.5 | AQ76: 4 | AY76: -5.5
A77: 2025-06-07 | B77: 1 | C77: 40 | D77: 24 | F77: 1 | G77: 32 | H77: 33 | J77: 1 | K77: 35 | L77: 30 | N77: 1 | O77: 25 | P77: 40 | R77: 1 | S77: 36 | T77: 28 | V77: -1 | W77: 37 | X77: 27 | Z77: 1 | AA77: 38 | AB77: 26 | AE77: 16 | AF77: -1 | AG77: 5 | AH77: -15 | AI77: 8 | AJ77: 10 | AK77: 12 | AM77: 0 | AN77: 8.5 | AO77: 5.5 | AP77: 15.5 | AQ77: 4 | AY77: -5.5
A78: 2025-06-08 | B78: -1 | C78: 40 | D78: 25 | F78: 1 | G78: 33 | H78: 33 | J78: -1 | K78: 35 | L78: 31 | N78: 1 | O78: 26 | P78: 40 | R78: -1 | S78: 36 | T78: 29 | V78: -1 | W78: 37 | X78: 28 | Z78: -1 | AA78: 38 | AB78: 27 | AE78: 15 | AF78: 0 | AG78: 4 | AH78: -14 | AI78: 7 | AJ78: 9 | AK78: 11 | AM78: 0 | AN78: 7.5 | AO78: 5.5 | AP78: 14.5 | AQ78: 4 | AY78: -5.5
A79: 2025-06-09 | B79: -1 | C79: 40 | D79: 26 | F79: 1 | G79: 34 | H79: 33 | J79: -1 | K79: 35 | L79: 32 | N79: 1 | O79: 27 | P79: 40 | R79: -1 | S79: 36 | T79: 30 | V79: 1 | W79: 38 | X79: 28 | Z79: 1 | AA79: 39 | AB79: 27 | AE79: 14 | AF79: 1 | AG79: 3 | AH79: -13 | AI79: 6 | AJ79: 10 | AK79: 12 | AM79: 0 | AN79: 6.5 | AO79: 5.5 | AP79: 13.5 | AQ79: 4 | AY79: -5.5
A80: 2025-06-10 | B80: 1 | C80: 41 | D80: 26 | F80: 1 | G80: 35 | H80: 33 | J80: 1 | K80: 36 | L80: 32 | N80: -1 | O80: 27 | P80: 41 | R80: -1 | S80: 36 | T80: 31 | V80: -1 | W80: 38 | X80: 29 | Z80: -1 | AA80: 39 | AB80: 28 | AE80: 15 | AF80: 2 | AG80: 4 | AH80: -14 | AI80: 5 | AJ80: 9 | AK80: 11 | AM80: 0 | AN80: 6.5 | AO80: 5.5 | AP80: 14.5 | AQ80: 5 | AY80: -5.5
A81: 2025-06-11 | B81: -1 | C81: 41 | D81: 27 | F81: -1 | G81: 35 | H81: 34 | J81: -1 | K81: 36 | L81: 33 | N81: 1 | O81: 28 | P81: 41 | R81: -1 | S81: 36 | T81: 32 | V81: 1 | W81: 39 | X81: 29 | Z81: 1 | AA81: 40 | AB81: 28 | AE81: 14 | AF81: 1 | AG81: 3 | AH81: -13 | AI81: 4 | AJ81: 10 | AK81: 12 | AM81: 0 | AN81: 6.5 | AO81: 5.5 | AP81: 13.5 | AQ81: 5 | AY81: -5.5
A82: 2025-06-12 | B82: 1 | C82: 42 | D82: 27 | G82: 35 | H82: 34 | J82: 1 | K82: 37 | L82: 33 | N82: -1 | O82: 28 | P82: 42 | R82: -1 | S82: 36 | T82: 33 | W82: 39 | X82: 29 | AA82: 40 | AB82: 28 | AE82: 15 | AF82: 1 | AG82: 4 | AH82: -14 | AI82: 3 | AJ82: 10 | AK82: 12 | AM82: 0 | AN82: 7 | AO82: 5.5 | AP82: 14.5 | AQ82: 6 | AY82: -5.5
A83: 2025-06-13 | B83: -1 | C83: 42 | D83: 28 | F83: -1 | G83: 35 | H83: 35 | J83: 1 | K83: 38 | L83: 33 | N83: 1 | O83: 29 | P83: 42 | R83: -1 | S83: 36 | T83: 34 | V83: 1 | W83: 40 | X83: 29 | Z83: -1 | AA83: 40 | AB83: 29 | AE83: 14 | AF83: 0 | AG83: 5 | AH83: -13 | AI83: 2 | AJ83: 11 | AK83: 11 | AM83: 0 | AN83: 7 | AO83: 4.5 | AP83: 13.5 | AQ83: 6 | AY83: -4.5
A84: 2025-06-14 | B84: 1 | C84: 43 | D84: 28 | F84: 1 | G84: 36 | H84: 35 | J84: -1 | K84: 38 | L84: 34 | N84: -1 | O84: 29 | P84: 43 | R84: 1 | S84: 37 | T84: 34 | V84: 1 | W84: 41 | X84: 29 | Z84: 1 | AA84: 41 | AB84: 29 | AE84: 15 | AF84: 1 | AG84: 4 | AH84: -14 | AI84: 3 | AJ84: 12 | AK84: 12 | AM84: 0 | AN84: 7 | AO84: 5.5 | AP84: 14.5 | AQ84: 6 | AY84: -5.5
A85: 2025-06-15 | B85: 1 | C85: 44 | D85: 28 | F85: 1 | G85: 37 | H85: 35 | J85: 1 | K85: 39 | L85: 34 | N85: -1 | O85: 29 | P85: 44 | R85: -1 | S85: 37 | T85: 35 | V85: 1 | W85: 42 | X85: 29 | Z85: 1 | AA85: 42 | AB85: 29 | AE85: 16 | AF85: 2 | AG85: 5 | AH85: -15 | AI85: 2 | AJ85: 13 | AK85: 13 | AM85: 0 | AN85: 7 | AO85: 5.5 | AP85: 15.5 | AQ85: 7 | AY85: -5.5
A86: 2025-06-16 | C86: 44 | D86: 28 | G86: 37 | H86: 35 | K86: 39 | L86: 34 | O86: 29 | P86: 44 | S86: 37 | T86: 35 | V86: 1 | W86: 43 | X86: 29 | Z86: -1 | AA86: 42 | AB86: 30 | AE86: 16 | AF86: 2 | AG86: 5 | AH86: -15 | AI86: 2 | AJ86: 14 | AK86: 12 | AM86: 0 | AN86: 7 | AO86: 5.5 | AP86: 15.5 | AQ86: 7 | AY86: -5.5
A87: 2025-06-17 | B87: 1 | C87: 45 | D87: 28 | F87: 1 | G87: 38 | H87: 35 | J87: -1 | K87: 39 | L87: 35 | N87: -1 | O87: 29 | P87: 45 | R87: 1 | S87: 38 | T87: 35 | V87: -1 | W87: 43 | X87: 30 | Z87: 1 | AA87: 43 | AB87: 30 | AE87: 17 | AF87: 3 | AG87: 4 | AH87: -16 | AI87: 3 | AJ87: 13 | AK87: 13 | AM87: 0 | AN87: 7 | AO87: 6.5 | AP87: 16.5 | AQ87: 7 | AY87: -6.5
A88: 2025-06-18 | C88: 45 | D88: 28 | F88: 1 | G88: 39 | H88: 35 | K88: 39 | L88: 35 | O88: 29 | P88: 45 | S88: 38 | T88: 35 | V88: 1 | W88: 44 | X88: 30 | Z88: 1 | AA88: 44 | AB88: 30 | AE88: 17 | AF88: 4 | AG88: 4 | AH88: -16 | AI88: 3 | AJ88: 14 | AK88: 14 | AM88: 0 | AN88: 6.5 | AO88: 6.5 | AP88: 16.5 | AQ88: 7 | AY88: -6.5
A89: 2025-06-19 | B89: -1 | C89: 45 | D89: 29 | F89: -1 | G89: 39 | H89: 36 | J89: 1 | K89: 40 | L89: 35 | N89: 0 | O89: 30 | P89: 46 | R89: 2 | S89: 40 | T89: 35 | V89: 1 | W89: 45 | X89: 30 | Z89: -1 | AA89: 44 | AB89: 31 | AE89: 16 | AF89: 3 | AG89: 5 | AH89: -16 | AI89: 5 | AJ89: 15 | AK89: 13 | AM89: 0 | AN89: 6.5 | AO89: 5.5 | AP89: 16 | AQ89: 5.5 | AY89: -5.5
A90: 2025-06-20 | B90: -1 | C90: 45 | D90: 30 | F90: -1 | G90: 39 | H90: 37 | J90: 1 | K90: 41 | L90: 35 | N90: -1 | O90: 30 | P90: 47 | R90: 1 | S90: 41 | T90: 35 | V90: 1 | W90: 46 | X90: 30 | Z90: -1 | AA90: 44 | AB90: 32 | AE90: 15 | AF90: 2 | AG90: 6 | AH90: -17 | AI90: 6 | AJ90: 16 | AK90: 12 | AM90: 0 | AN90: 6.5 | AO90: 4.5 | AP90: 16 | AQ90: 4.5 | AY90: -4.5
A91: 2025-06-21 | B91: 1 | C91: 46 | D91: 30 | F91: -1 | G91: 39 | H91: 38 | J91: 1 | K91: 42 | L91: 35 | N91: -1 | O91: 30 | P91: 48 | R91: 1 | S91: 42 | T91: 35 | V91: -1 | W91: 46 | X91: 31 | Z91: -1 | AA91: 44 | AB91: 33 | AE91: 16 | AF91: 1 | AG91: 7 | AH91: -18 | AI91: 7 | AJ91: 15 | AK91: 11 | AM91: 0 | AN91: 7.5 | AO91: 4.5 | AP91: 17 | AQ91: 4.5 | AY91: -4.5
A92: 2025-06-22 | B92: -1 | C92: 46 | D92: 31 | F92: 1 | G92: 40 | H92: 38 | J92: 1 | K92: 43 | L92: 35 | N92: 1 | O92: 31 | P92: 48 | R92: -1 | S92: 42 | T92: 36 | V92: 1 | W92: 47 | X92: 31 | Z92: 1 | AA92: 45 | AB92: 33 | AE92: 15 | AF92: 2 | AG92: 8 | AH92: -17 | AI92: 6 | AJ92: 16 | AK92: 12 | AM92: 0 | AN92: 6.5 | AO92: 3.5 | AP92: 16 | AQ92: 4.5 | AY92: -3.5
A93: 2025-06-23 | B93: -1 | C93: 46 | D93: 32 | F93: 1 | G93: 41 | H93: 38 | J93: -1 | K93: 43 | L93: 36 | N93: 1 | O93: 32 | P93: 48 | R93: 1 | S93: =S92+IF(R93>0,R93,0) -> 43 | T93: =T92-IF(R93<0,R93,0) -> 36 | W93: =W92+IF(V93>0,V93,0) -> 47 | X93: =X92-IF(V93<0,V93,0) -> 31 | Z93: 1 | AA93: 46 | AB93: 33 | AE93: 14 | AF93: 3 | AG93: 7 | AH93: -16 | AI93: 7 | AJ93: 16 | AK93: 13 | AM93: 0 | AN93: 5.5 | AO93: 3.5 | AP93: 15 | AQ93: 3.5 | AY93: -3.5
A94: 2025-06-24 | B94: -1 | C94: 46 | D94: 33 | F94: 1 | G94: 42 | H94: 38 | J94: 1 | K94: 44 | L94: 36 | N94: -1 | O94: 32 | P94: 49 | R94: 1 | S94: 44 | T94: 36 | V94: -1 | W94: =W93+IF(V94>0,V94,0) -> 47 | X94: =X93-IF(V94<0,V94,0) -> 32 | Z94: 1 | AA94: 47 | AB94: 33 | AE94: 13 | AF94: 4 | AG94: 8 | AH94: -17 | AI94: 8 | AJ94: 15 | AK94: 14 | AM94: 0 | AN94: 4.5 | AO94: 2.5 | AP94: 15 | AQ94: 2.5 | AY94: -2.5
A95: 2025-06-25 | B95: 1 | C95: 47 | D95: 33 | F95: -1 | G95: 42 | H95: 39 | J95: 1 | K95: 45 | L95: 36 | N95: -1 | O95: 32 | P95: 50 | R95: -1 | S95: 44 | T95: 37 | V95: -1 | W95: 47 | X95: 33 | Z95: 1 | AA95: 48 | AB95: 33 | AE95: 14 | AF95: 3 | AG95: 9 | AH95: -18 | AI95: 7 | AJ95: 14 | AK95: 15 | AM95: 0 | AN95: 5.5 | AO95: 2.5 | AP95: 16 | AQ95: 3.5 | AY95: -2.5
A96: 2025-06-26 | B96: 1 | C96: 48 | D96: 33 | G96: 42 | H96: 39 | K96: 45 | L96: 36 | O96: 32 | P96: 50 | R96: -1 | S96: =S95+IF(R96>0,R96,0) -> 44 | T96: =T95-IF(R96<0,R96,0) -> 38 | V96: -1 | W96: 47 | X96: 34 | AA96: 48 | AB96: 33 | AE96: 15 | AF96: 3 | AG96: 9 | AH96: -18 | AI96: 6 | AJ96: 13 | AK96: 15 | AM96: 0 | AN96: 6 | AO96: 3 | AP96: 16.5 | AQ96: 4.5 | AY96: -3
A97: 2025-06-27 | B97: -1 | C97: 48 | D97: 34 | F97: 1 | G97: 43 | H97: 39 | J97: 1 | K97: 46 | L97: 36 | N97: 1 | O97: 33 | P97: 50 | R97: 1 | S97: 45 | T97: 38 | V97: 1 | W97: 48 | X97: 34 | Z97: 1 | AA97: 49 | AB97: 33 | AE97: 14 | AF97: 4 | AG97: 10 | AH97: -17 | AI97: 7 | AJ97: 14 | AK97: 16 | AM97: 0 | AN97: 5 | AO97: 2 | AP97: 15.5 | AQ97: 3.5 | AY97: -2
A98: 2025-06-28 | B98: 1 | C98: 49 | D98: 34 | F98: -1 | G98: 43 | H98: 40 | J98: 1 | K98: 47 | L98: 36 | N98: 1 | O98: =O97+IF(N98>0,N98,0) -> 34 | P98: =P97-IF(N98<0,N98,0) -> 50 | R98: 1 | S98: 46 | T98: 38 | V98: -1 | W98: 48 | X98: 35 | Z98: -1 | AA98: 49 | AB98: 34 | AE98: 15 | AF98: 3 | AG98: 11 | AH98: -16 | AI98: 8 | AJ98: 13 | AK98: 15 | AM98: 0 | AN98: 6 | AO98: 2 | AP98: 15.5 | AQ98: 3.5 | AY98: =IF(AO98 = 0, MIN(AM98:AN98, AP98:AQ98), 0-AO98) -> -2
A99: 2025-06-29 | B99: -1 | C99: 49 | D99: 35 | F99: 1 | G99: 44 | H99: 40 | J99: -1 | K99: 47 | L99: 37 | N99: 1 | O99: 35 | P99: 50 | R99: 1 | S99: 47 | T99: 38 | V99: 1 | W99: 49 | X99: 35 | Z99: 1 | AA99: 50 | AB99: 34 | AE99: =C99-D99 -> 14 | AF99: =G99-H99 -> 4 | AG99: =K99-L99 -> 10 | AH99: =O99-P99 -> -15 | AI99: =S99-T99 -> 9 | AJ99: 14 | AK99: =AA99-AB99 -> 16 | AM99: 0 | AN99: 5 | AO99: 2 | AP99: 14.5 | AQ99: 2.5 | AY99: -2
A100: 2025-06-30 | C100: 49 | D100: 35 | F100: -1 | G100: 44 | H100: 41 | K100: =K99+IF(J100>0,J100,0) -> 47 | L100: =L99-IF(J100<0,J100,0) -> 37 | N100: 1 | O100: 36 | P100: 50 | R100: -1 | S100: 47 | T100: 39 | V100: 1 | W100: 50 | X100: 35 | Z100: -1 | AA100: 50 | AB100: 35 | AE100: 14 | AF100: 3 | AG100: 10 | AH100: -14 | AI100: 8 | AJ100: 15 | AK100: 15 | AM100: 0 | AN100: 5.5 | AO100: 2 | AP100: 14 | AQ100: =(MAX($AE100:$AI100)-AI100)/2 -> 3 | AY100: -2
A101: 2025-07-01 | B101: 1 | C101: 50 | D101: 35 | F101: -1 | G101: 44 | H101: 42 | K101: 47 | L101: 37 | N101: 1 | O101: 37 | P101: 50 | R101: -1 | S101: 47 | T101: 40 | W101: 50 | X101: 35 | Z101: 1 | AA101: 51 | AB101: 35 | AE101: 15 | AF101: 2 | AG101: 10 | AH101: -13 | AI101: 7 | AJ101: 15 | AK101: 16 | AM101: 0 | AN101: 6.5 | AO101: 2.5 | AP101: 14 | AQ101: 4 | AY101: -2.5
A102: 2025-07-02 | B102: 1 | C102: 51 | D102: 35 | F102: 1 | G102: 45 | H102: 42 | J102: 0 | K102: 48 | L102: 38 | N102: 1 | O102: 38 | P102: 50 | R102: -1 | S102: 47 | T102: 41 | V102: 0 | W102: 51 | X102: 36 | Z102: 1 | AA102: 52 | AB102: 35 | AE102: 16 | AF102: 3 | AG102: 10 | AH102: -12 | AI102: 6 | AJ102: 15 | AK102: 17 | AM102: 0 | AN102: 6.5 | AO102: 3 | AP102: 14 | AQ102: 5 | AY102: -3
A103: 2025-07-03 | B103: 1 | C103: 52 | D103: 35 | G103: 45 | H103: 42 | J103: -1 | K103: =K102+IF(J103>0,J103,0) -> 48 | L103: =L102-IF(J103<0,J103,0) -> 39 | O103: 38 | P103: 50 | S103: 47 | T103: 41 | W103: 51 | X103: 36 | Z103: -1 | AA103: 52 | AB103: 36 | AE103: 17 | AF103: 3 | AG103: 9 | AH103: -12 | AI103: 6 | AJ103: 15 | AK103: 16 | AM103: 0 | AN103: 7 | AO103: 4 | AP103: 14.5 | AQ103: 5.5 | AY103: -4
A104: 2025-07-04 | B104: 1 | C104: 53 | D104: 35 | F104: 1 | G104: 46 | H104: 42 | J104: 1 | K104: 49 | L104: 39 | N104: -1 | O104: 38 | P104: 51 | R104: -1 | S104: 47 | T104: 42 | V104: -1 | W104: 51 | X104: 37 | Z104: -1 | AA104: 52 | AB104: 37 | AE104: 18 | AF104: 4 | AG104: 10 | AH104: -13 | AI104: 5 | AJ104: 14 | AK104: 15 | AM104: 0 | AN104: 7 | AO104: 4 | AP104: 15.5 | AQ104: 6.5 | AY104: -4
A105: 2025-07-05 | B105: -1 | C105: 53 | D105: 36 | F105: -1 | G105: 46 | H105: 43 | J105: -1 | K105: 49 | L105: 40 | N105: -1 | O105: 38 | P105: 52 | R105: 1 | S105: 48 | T105: 42 | V105: 1 | W105: 52 | X105: 37 | Z105: -1 | AA105: 52 | AB105: 38 | AE105: 17 | AF105: 3 | AG105: 9 | AH105: -14 | AI105: 6 | AJ105: 15 | AK105: 14 | AM105: 0 | AN105: 7 | AO105: 4 | AP105: 15.5 | AQ105: 5.5 | AY105: -4
A106: 2025-07-06 | B106: 1 | C106: 54 | D106: 36 | F106: -1 | G106: 46 | H106: 44 | J106: 1 | K106: 50 | L106: 40 | N106: -1 | O106: 38 | P106: 53 | R106: -1 | S106: 48 | T106: 43 | V106: 1 | W106: 53 | X106: 37 | Z106: 1 | AA106: 53 | AB106: 38 | AE106: 18 | AF106: 2 | AG106: 10 | AH106: -15 | AI106: 5 | AJ106: 16 | AK106: 15 | AM106: 0 | AN106: 8 | AO106: 4 | AP106: 16.5 | AQ106: 6.5 | AY106: -4
A107: 2025-07-07 | C107: 54 | D107: 36 | F107: -1 | G107: 46 | H107: 45 | J107: 1 | K107: 51 | L107: 40 | N107: -1 | O107: 38 | P107: 54 | S107: 48 | T107: 43 | V107: -1 | W107: 53 | X107: 38 | AA107: 53 | AB107: 38 | AE107: 18 | AF107: 1 | AG107: 11 | AH107: -16 | AI107: 5 | AJ107: 15 | AK107: 15 | AM107: 0 | AN107: 8.5 | AO107: 3.5 | AP107: 17 | AQ107: 6.5 | AY107: -3.5
A108: 2025-07-08 | B108: -1 | C108: 54 | D108: 37 | F108: -1 | G108: 46 | H108: 46 | J108: 1 | K108: 52 | L108: 40 | N108: -1 | O108: 38 | P108: 55 | R108: 1 | S108: 49 | T108: 43 | V108: -1 | W108: 53 | X108: 39 | Z108: -1 | AA108: 53 | AB108: 39 | AE108: 17 | AF108: 0 | AG108: 12 | AH108: -17 | AI108: 6 | AJ108: 14 | AK108: 14 | AM108: 0 | AN108: 8.5 | AO108: 2.5 | AP108: 17 | AQ108: 5.5 | AY108: -2.5
A109: 2025-07-09 | B109: -1 | C109: 54 | D109: 38 | F109: 1 | G109: 47 | H109: 46 | J109: 1 | K109: 53 | L109: 40 | N109: -1 | O109: 38 | P109: 56 | R109: -1 | S109: =S108+IF(R109>0,R109,0) -> 49 | T109: =T108-IF(R109<0,R109,0) -> 44 | V109: 1 | W109: 54 | X109: 39 | Z109: 1 | AA109: 54 | AB109: 39 | AE109: 16 | AF109: 1 | AG109: 13 | AH109: -18 | AI109: 5 | AJ109: 15 | AK109: 15 | AM109: 0 | AN109: 7.5 | AO109: 1.5 | AP109: 17 | AQ109: 5.5 | AY109: -1.5
A110: 2025-07-10 | B110: 1 | C110: 55 | D110: 38 | F110: 1 | G110: 48 | H110: 46 | K110: 53 | L110: 40 | O110: 38 | P110: 56 | R110: 1 | S110: 50 | T110: 44 | W110: 54 | X110: 39 | Z110: -1 | AA110: 54 | AB110: 40 | AE110: 17 | AF110: 2 | AG110: 13 | AH110: -18 | AI110: 6 | AJ110: 15 | AK110: 14 | AM110: 0 | AN110: 7.5 | AO110: 2 | AP110: 17.5 | AQ110: 5.5 | AY110: -2
A111: 2025-07-11 | B111: -1 | C111: 55 | D111: 39 | F111: -1 | G111: 48 | H111: 47 | J111: 1 | K111: 54 | L111: 40 | N111: -1 | O111: 38 | P111: 57 | R111: -1 | S111: 50 | T111: 45 | V111: -1 | W111: 54 | X111: 40 | Z111: -1 | AA111: 54 | AB111: 41 | AE111: 16 | AF111: 1 | AG111: 14 | AH111: -19 | AI111: 5 | AJ111: 14 | AK111: 13 | AM111: 0 | AN111: 7.5 | AO111: 1 | AP111: 17.5 | AQ111: 5.5 | AY111: -1
A112: 2025-07-12 | B112: 1 | C112: 56 | D112: 39 | F112: 1 | G112: 49 | H112: 47 | J112: 1 | K112: 55 | L112: 40 | N112: -1 | O112: 38 | P112: 58 | R112: -1 | S112: 50 | T112: 46 | V112: -1 | W112: 54 | X112: 41 | Z112: -1 | AA112: 54 | AB112: 42 | AE112: 17 | AF112: 2 | AG112: 15 | AH112: -20 | AI112: 4 | AJ112: 13 | AK112: 12 | AM112: 0 | AN112: 7.5 | AO112: 1 | AP112: 18.5 | AQ112: 6.5 | AY112: -1
A113: 2025-07-13 | B113: 1 | C113: 57 | D113: 39 | F113: 1 | G113: 50 | H113: 47 | J113: 1 | K113: 56 | L113: 40 | N113: 1 | O113: 39 | P113: 58 | R113: 1 | S113: 51 | T113: 46 | V113: 1 | W113: 55 | X113: 41 | Z113: 1 | AA113: 55 | AB113: 42 | AE113: 18 | AF113: 3 | AG113: 16 | AH113: -19 | AI113: 5 | AJ113: 14 | AK113: 13 | AM113: 0 | AN113: 7.5 | AO113: 1 | AP113: 18.5 | AQ113: 6.5 | AY113: -1
A114: 2025-07-14 | C114: 57 | D114: 39 | G114: 50 | H114: 47 | K114: 56 | L114: 40 | O114: 39 | P114: 58 | S114: 51 | T114: 46 | W114: 55 | X114: 41 | AA114: 55 | AB114: 42 | AE114: 18 | AF114: 3 | AG114: 16 | AH114: -19 | AI114: 5 | AJ114: 14 | AK114: 13 | AM114: 0 | AN114: 7.5 | AO114: 1 | AP114: 18.5 | AQ114: 6.5 | AY114: -1
A115: 2025-07-15 | C115: 57 | D115: 39 | G115: 50 | H115: 47 | K115: 56 | L115: 40 | O115: 39 | P115: 58 | S115: 51 | T115: 46 | W115: 55 | X115: 41 | AA115: 55 | AB115: 42 | AE115: 18 | AF115: 3 | AG115: 16 | AH115: -19 | AI115: 5 | AJ115: 14 | AK115: 13 | AM115: 0 | AN115: 7.5 | AO115: 1 | AP115: 18.5 | AQ115: 6.5 | AY115: -1
A116: 2025-07-16 | C116: 57 | D116: 39 | G116: 50 | H116: 47 | K116: 56 | L116: 40 | O116: 39 | P116: 58 | S116: 51 | T116: 46 | W116: 55 | X116: 41 | AA116: 55 | AB116: 42 | AE116: 18 | AF116: 3 | AG116: 16 | AH116: -19 | AI116: 5 | AJ116: 14 | AK116: 13 | AM116: 0 | AN116: 7.5 | AO116: 1 | AP116: 18.5 | AQ116: 6.5 | AY116: -1
A117: 2025-07-17 | C117: 57 | D117: 39 | G117: 50 | H117: 47 | K117: 56 | L117: 40 | O117: 39 | P117: 58 | S117: =S116+IF(R117>0,R117,0) -> 51 | T117: =T116-IF(R117<0,R117,0) -> 46 | W117: =W116+IF(V117>0,V117,0) -> 55 | X117: =X116-IF(V117<0,V117,0) -> 41 | AA117: 55 | AB117: 42 | AE117: 18 | AF117: 3 | AG117: 16 | AH117: -19 | AI117: 5 | AJ117: 14 | AK117: 13 | AM117: 0 | AN117: 7.5 | AO117: 1 | AP117: 18.5 | AQ117: 6.5 | AY117: -1
A118: 2025-07-18 | B118: 1 | C118: 58 | D118: 39 | F118: 1 | G118: 51 | H118: 47 | J118: 1 | K118: 57 | L118: 40 | N118: -1 | O118: 39 | P118: 59 | R118: -1 | S118: 51 | T118: 47 | V118: -1 | W118: =W117+IF(V118>0,V118,0) -> 55 | X118: =X117-IF(V118<0,V118,0) -> 42 | AA118: 55 | AB118: 42 | AE118: 19 | AF118: 4 | AG118: 17 | AH118: -20 | AI118: 4 | AJ118: 13 | AK118: 13 | AM118: 0 | AN118: 7.5 | AO118: 1 | AP118: 19.5 | AQ118: 7.5 | AY118: -1
A119: 2025-07-19 | B119: 1 | C119: 59 | D119: 39 | F119: 1 | G119: 52 | H119: 47 | J119: 1 | K119: 58 | L119: 40 | N119: -1 | O119: 39 | P119: 60 | R119: -1 | S119: 51 | T119: 48 | V119: 1 | W119: 56 | X119: 42 | Z119: 1 | AA119: 56 | AB119: 42 | AE119: 20 | AF119: 5 | AG119: 18 | AH119: -21 | AI119: 3 | AJ119: 14 | AK119: 14 | AM119: 0 | AN119: 7.5 | AO119: 1 | AP119: 20.5 | AQ119: 8.5 | AY119: -1
A120: 2025-07-20 | B120: -1 | C120: 59 | D120: 40 | F120: -1 | G120: 52 | H120: 48 | J120: 1 | K120: 59 | L120: 40 | N120: -1 | O120: 39 | P120: 61 | R120: -1 | S120: 51 | T120: 49 | V120: -1 | W120: 56 | X120: 43 | Z120: 1 | AA120: 57 | AB120: 42 | AE120: 19 | AF120: 4 | AG120: 19 | AH120: -22 | AI120: 2 | AJ120: 13 | AK120: 15 | AM120: 0 | AN120: 7.5 | AO120: 0 | AP120: 20.5 | AQ120: 8.5 | AY120: 0
A121: 2025-07-21 | B121: -1 | C121: 59 | D121: 41 | F121: -1 | G121: 52 | H121: 49 | J121: 1 | K121: 60 | L121: 40 | N121: 1 | O121: 40 | P121: 61 | R121: 1 | S121: 52 | T121: 49 | V121: 1 | W121: 57 | X121: 43 | Z121: -1 | AA121: 57 | AB121: 43 | AE121: 18 | AF121: 3 | AG121: 20 | AH121: -21 | AI121: 3 | AJ121: 14 | AK121: 14 | AM121: 1 | AN121: 8.5 | AO121: 0 | AP121: 20.5 | AQ121: 8.5 | AY121: 1
A122: 2025-07-22 | B122: 1 | C122: 60 | D122: 41 | F122: -1 | G122: 52 | H122: 50 | J122: -1 | K122: 60 | L122: 41 | N122: 1 | O122: 41 | P122: 61 | R122: -1 | S122: 52 | T122: 50 | V122: 1 | W122: 58 | X122: 43 | Z122: 1 | AA122: 58 | AB122: 43 | AE122: 19 | AF122: 2 | AG122: 19 | AH122: -20 | AI122: 2 | AJ122: 15 | AK122: 15 | AM122: 0 | AN122: 8.5 | AO122: 0 | AP122: 19.5 | AQ122: 8.5 | AY122: 0
A123: 2025-07-23 | B123: -1 | C123: 60 | D123: 42 | F123: 1 | G123: 53 | H123: 50 | J123: 1 | K123: 61 | L123: 41 | N123: 1 | O123: 42 | P123: 61 | R123: -1 | S123: 52 | T123: 51 | V123: -1 | W123: 58 | X123: 44 | Z123: 1 | AA123: 59 | AB123: 43 | AE123: 18 | AF123: 3 | AG123: 20 | AH123: -19 | AI123: 1 | AJ123: 14 | AK123: 16 | AM123: 1 | AN123: 8.5 | AO123: 0 | AP123: 19.5 | AQ123: 9.5 | AY123: 1
A124: 2025-07-24 | C124: 60 | D124: 42 | G124: 53 | H124: 50 | K124: 61 | L124: 41 | O124: 42 | P124: 61 | R124: 1 | S124: 53 | T124: 51 | W124: 58 | X124: 44 | AA124: 59 | AB124: 43 | AE124: 18 | AF124: 3 | AG124: 20 | AH124: -19 | AI124: 2 | AJ124: 14 | AK124: 16 | AM124: 1 | AN124: 8.5 | AO124: 0 | AP124: 19.5 | AQ124: 9 | AY124: 1
A125: 2025-07-25 | B125: -1 | C125: 60 | D125: 43 | F125: 1 | G125: 54 | H125: 50 | J125: -1 | K125: 61 | L125: 42 | N125: -1 | O125: 42 | P125: 62 | R125: 1 | S125: 54 | T125: 51 | V125: 1 | W125: 59 | X125: 44 | Z125: -1 | AA125: 59 | AB125: 44 | AE125: 17 | AF125: 4 | AG125: 19 | AH125: -20 | AI125: 3 | AJ125: 15 | AK125: 15 | AM125: 1 | AN125: 7.5 | AO125: 0 | AP125: 19.5 | AQ125: 8 | AY125: 1
A126: 2025-07-26 | B126: 1 | C126: 61 | D126: 43 | F126: 1 | G126: 55 | H126: 50 | J126: -1 | K126: 61 | L126: 43 | N126: 1 | O126: 43 | P126: 62 | R126: -1 | S126: 54 | T126: 52 | V126: 1 | W126: 60 | X126: 44 | Z126: -1 | AA126: 59 | AB126: 45 | AE126: 18 | AF126: 5 | AG126: 18 | AH126: -19 | AI126: 2 | AJ126: 16 | AK126: 14 | AM126: 0 | AN126: 6.5 | AO126: 0 | AP126: 18.5 | AQ126: 8 | AY126: 0
A127: 2025-07-27 | B127: 1 | C127: 62 | D127: 43 | F127: 1 | G127: 56 | H127: 50 | J127: 1 | K127: 62 | L127: 43 | N127: 1 | O127: 44 | P127: 62 | R127: -1 | S127: 54 | T127: 53 | V127: -1 | W127: 60 | X127: 45 | Z127: 1 | AA127: 60 | AB127: 45 | AE127: 19 | AF127: 6 | AG127: 19 | AH127: -18 | AI127: 1 | AJ127: 15 | AK127: 15 | AM127: 0 | AN127: 6.5 | AO127: 0 | AP127: 18.5 | AQ127: 9 | AY127: 0
A128: 2025-07-28 | B128: -1 | C128: 62 | D128: 44 | F128: -1 | G128: 56 | H128: 51 | J128: 1 | K128: 63 | L128: 43 | N128: 1 | O128: 45 | P128: 62 | R128: 1 | S128: 55 | T128: 53 | V128: -1 | W128: 60 | X128: 46 | Z128: 1 | AA128: 61 | AB128: 45 | AE128: 18 | AF128: 5 | AG128: 20 | AH128: -17 | AI128: 2 | AJ128: 14 | AK128: 16 | AM128: 1 | AN128: 7.5 | AO128: 0 | AP128: 18.5 | AQ128: 9 | AY128: 1
A129: 2025-07-29 | B129: -1 | C129: 62 | D129: 45 | F129: -1 | G129: 56 | H129: 52 | J129: 1 | K129: 64 | L129: 43 | N129: 1 | O129: 46 | P129: 62 | R129: -1 | S129: 55 | T129: 54 | V129: 1 | W129: 61 | X129: 46 | Z129: -1 | AA129: 61 | AB129: 46 | AE129: 17 | AF129: 4 | AG129: 21 | AH129: -16 | AI129: 1 | AJ129: 15 | AK129: 15 | AM129: 2 | AN129: 8.5 | AO129: 0 | AP129: 18.5 | AQ129: 10 | AY129: 2
A130: 2025-07-30 | B130: 1 | C130: 63 | D130: 45 | F130: 1 | G130: 57 | H130: 52 | J130: -1 | K130: 64 | L130: 44 | N130: 1 | O130: 47 | P130: 62 | R130: -1 | S130: 55 | T130: 55 | V130: -1 | W130: 61 | X130: 47 | Z130: -1 | AA130: 61 | AB130: 47 | AE130: 18 | AF130: 5 | AG130: 20 | AH130: -15 | AI130: 0 | AJ130: 14 | AK130: 14 | AM130: 1 | AN130: 7.5 | AO130: 0 | AP130: 17.5 | AQ130: 10 | AY130: =IF(AO130 = 0, MIN(AM130:AN130, AP130:AQ130), 0-AO130) -> 1
A131: 2025-07-31 | C131: 63 | D131: 45 | F131: -1 | G131: 57 | H131: 53 | K131: 64 | L131: 44 | O131: 47 | P131: 62 | S131: 55 | T131: 55 | W131: 61 | X131: 47 | AA131: 61 | AB131: 47 | AE131: =C131-D131 -> 18 | AF131: =G131-H131 -> 4 | AG131: =K131-L131 -> 20 | AH131: =O131-P131 -> -15 | AI131: =S131-T131 -> 0 | AJ131: 14 | AK131: =AA131-AB131 -> 14 | AM131: 1 | AN131: 8 | AO131: 0 | AP131: 17.5 | AQ131: 10 | AY131: 1
A132: 2025-08-01 | B132: 1 | C132: 64 | D132: 45 | F132: 1 | G132: 58 | H132: 53 | J132: 1 | K132: 65 | L132: 44 | N132: -1 | O132: 47 | P132: 63 | R132: -1 | S132: 55 | T132: 56 | V132: 1 | W132: 62 | X132: 47 | Z132: 1 | AA132: =AA131+IF(Z132>0,Z132,0) -> 62 | AB132: =AB131-IF(Z132<0,Z132,0) -> 47 | AE132: 19 | AF132: 5 | AG132: 21 | AH132: -16 | AI132: -1 | AJ132: =W132-X132 -> 15 | AK132: 15 | AM132: =(MAX($AE132:$AI132)-AE132)/2 -> 1 | AN132: =(MAX($AE132:$AI132)-AF132)/2 -> 8 | AO132: =(MAX($AE132:$AI132)-AG132)/2 -> 0 | AP132: =(MAX($AE132:$AI132)-AH132)/2 -> 18.5 | AQ132: =(MAX($AE132:$AI132)-AI132)/2 -> 11 | AY132: 1
A133: 2025-08-02 | B133: -1 | C133: 64 | D133: 46 | F133: -1 | G133: 58 | H133: 54 | J133: 1 | K133: 66 | L133: 44 | N133: -1 | O133: 47 | P133: 64 | R133: 1 | S133: 56 | T133: 56 | V133: -1 | W133: 62 | X133: 48 | Z133: -1 | AA133: 62 | AB133: 48 | AE133: 18 | AF133: 4 | AG133: 22 | AH133: -17 | AI133: 0 | AJ133: 14 | AK133: 14 | AM133: 2 | AN133: 9 | AO133: 0 | AP133: 19.5 | AQ133: 11 | AY133: 2
A134: 2025-08-03 | B134: 1 | C134: 65 | D134: 46 | G134: 58 | H134: 54 | J134: 1 | K134: 67 | L134: 44 | N134: 1 | O134: 48 | P134: 64 | R134: -1 | S134: 56 | T134: 57 | V134: 1 | W134: 63 | X134: 48 | Z134: -1 | AA134: 62 | AB134: 49 | AE134: 19 | AF134: 4 | AG134: 23 | AH134: -16 | AI134: -1 | AJ134: 15 | AK134: 13 | AM134: 2 | AN134: 9.5 | AO134: 0 | AP134: 19.5 | AQ134: 12 | AY134: 2
A135: 2025-08-04 | B135: -1 | C135: 65 | D135: 47 | F135: 1 | G135: 59 | H135: 54 | J135: 1 | K135: =K134+IF(J135>0,J135,0) -> 68 | L135: =L134-IF(J135<0,J135,0) -> 44 | N135: 1 | O135: 49 | P135: 64 | R135: 1 | S135: 57 | T135: 57 | V135: 1 | W135: 64 | X135: 48 | AA135: 62 | AB135: 49 | AE135: 18 | AF135: 5 | AG135: 24 | AH135: -15 | AI135: 0 | AJ135: 16 | AK135: 13 | AM135: 3 | AN135: 9.5 | AO135: 0 | AP135: 19.5 | AQ135: 12 | AY135: 3
A136: 2025-08-05 | B136: -1 | C136: 65 | D136: 48 | F136: 1 | G136: 60 | H136: 54 | J136: 1 | K136: 69 | L136: 44 | N136: -1 | O136: 49 | P136: 65 | R136: -1 | S136: 57 | T136: 58 | V136: 1 | W136: 65 | X136: 48 | Z136: 1 | AA136: 63 | AB136: 49 | AE136: 17 | AF136: 6 | AG136: 25 | AH136: -16 | AI136: -1 | AJ136: 17 | AK136: 14 | AM136: 4 | AN136: 9.5 | AO136: 0 | AP136: 20.5 | AQ136: 13 | AY136: 4
A137: 2025-08-06 | B137: 1 | C137: =C136+IF(B137>0,B137,0) -> 66 | D137: =D136-IF(B137<0,B137,0) -> 48 | F137: -1 | G137: =G136+IF(F137>0,F137,0) -> 60 | H137: =H136-IF(F137<0,F137,0) -> 55 | J137: 1 | K137: 70 | L137: 44 | N137: -1 | O137: 49 | P137: 66 | R137: 1 | S137: 58 | T137: 58 | V137: -1 | W137: 65 | X137: 49 | Z137: 1 | AA137: 64 | AB137: 49 | AE137: 18 | AF137: 5 | AG137: 26 | AH137: -17 | AI137: 0 | AJ137: 16 | AK137: 15 | AM137: 4 | AN137: 10.5 | AO137: 0 | AP137: 21.5 | AQ137: 13 | AY137: 4
A138: 2025-08-07 | C138: 66 | D138: 48 | F138: -1 | G138: 60 | H138: 56 | K138: =K137+IF(J138>0,J138,0) -> 70 | L138: =L137-IF(J138<0,J138,0) -> 44 | N138: 1 | O138: 50 | P138: 66 | S138: 58 | T138: 58 | W138: 65 | X138: 49 | Z138: 1 | AA138: 65 | AB138: 49 | AE138: 18 | AF138: 4 | AG138: 26 | AH138: -16 | AI138: 0 | AJ138: 16 | AK138: 16 | AM138: 4 | AN138: 11 | AO138: 0 | AP138: 21 | AQ138: 13 | AY138: 4
A139: 2025-08-08 | B139: -1 | C139: 66 | D139: 49 | F139: -1 | G139: =G138+IF(F139>0,F139,0) -> 60 | H139: =H138-IF(F139<0,F139,0) -> 57 | J139: 1 | K139: 71 | L139: 44 | N139: 1 | O139: =O138+IF(N139>0,N139,0) -> 51 | P139: =P138-IF(N139<0,N139,0) -> 66 | R139: 1 | S139: 59 | T139: 58 | V139: 1 | W139: 66 | X139: 49 | Z139: 1 | AA139: 66 | AB139: 49 | AE139: 17 | AF139: 3 | AG139: 27 | AH139: -15 | AI139: 1 | AJ139: 17 | AK139: 17 | AM139: 5 | AN139: 12 | AO139: 0 | AP139: 21 | AQ139: 13 | AY139: 5
A140: 2025-08-09 | B140: 1 | C140: 67 | D140: 49 | F140: 1 | G140: 61 | H140: 57 | J140: 1 | K140: 72 | L140: 44 | N140: -1 | O140: 51 | P140: 67 | R140: -1 | S140: 59 | T140: 59 | V140: 1 | W140: 67 | X140: 49 | Z140: 1 | AA140: 67 | AB140: 49 | AE140: 18 | AF140: 4 | AG140: 28 | AH140: -16 | AI140: 0 | AJ140: 18 | AK140: 18 | AM140: 5 | AN140: 12 | AO140: 0 | AP140: 22 | AQ140: 14 | AY140: 5
A141: 2025-08-10 | B141: -1 | C141: 67 | D141: 50 | F141: 1 | G141: 62 | H141: 57 | J141: 1 | K141: 73 | L141: 44 | N141: -1 | O141: 51 | P141: 68 | R141: 1 | S141: 60 | T141: 59 | V141: 1 | W141: 68 | X141: 49 | Z141: -1 | AA141: 67 | AB141: 50 | AE141: 17 | AF141: 5 | AG141: 29 | AH141: -17 | AI141: 1 | AJ141: 19 | AK141: 17 | AM141: 6 | AN141: 12 | AO141: 0 | AP141: 23 | AQ141: 14 | AY141: 6
A142: 2025-08-11 | C142: 67 | D142: 50 | F142: -1 | G142: 62 | H142: 58 | J142: 1 | K142: 74 | L142: 44 | N142: -1 | O142: 51 | P142: 69 | R142: 1 | S142: 61 | T142: 59 | V142: 1 | W142: 69 | X142: 49 | Z142: -1 | AA142: 67 | AB142: 51 | AE142: 17 | AF142: 4 | AG142: 30 | AH142: -18 | AI142: 2 | AJ142: 20 | AK142: 16 | AM142: 6.5 | AN142: 13 | AO142: 0 | AP142: 24 | AQ142: 14 | AY142: 6.5
A143: 2025-08-12 | B143: -1 | C143: 67 | D143: 51 | F143: 1 | G143: 63 | H143: 58 | J143: 1 | K143: 75 | L143: 44 | N143: -1 | O143: 51 | P143: 70 | R143: -1 | S143: 61 | T143: 60 | V143: -1 | W143: 69 | X143: 50 | Z143: -1 | AA143: 67 | AB143: 52 | AE143: 16 | AF143: 5 | AG143: 31 | AH143: -19 | AI143: 1 | AJ143: 19 | AK143: 15 | AM143: 7.5 | AN143: 13 | AO143: 0 | AP143: 25 | AQ143: 15 | AY143: 7.5
A144: 2025-08-13 | B144: 1 | C144: 68 | D144: 51 | F144: 1 | G144: 64 | H144: 58 | J144: 1 | K144: 76 | L144: 44 | N144: -1 | O144: 51 | P144: 71 | R144: -1 | S144: 61 | T144: 61 | V144: -1 | W144: 69 | X144: 51 | Z144: 1 | AA144: 68 | AB144: 52 | AE144: 17 | AF144: 6 | AG144: 32 | AH144: -20 | AI144: 0 | AJ144: 18 | AK144: 16 | AM144: 7.5 | AN144: 13 | AO144: 0 | AP144: 26 | AQ144: 16 | AY144: 7.5
A145: 2025-08-14 | B145: -1 | C145: 68 | D145: 52 | G145: 64 | H145: 58 | K145: 76 | L145: 44 | O145: 51 | P145: 71 | S145: 61 | T145: 61 | V145: -1 | W145: 69 | X145: 52 | Z145: 1 | AA145: 69 | AB145: 52 | AE145: 16 | AF145: 6 | AG145: 32 | AH145: -20 | AI145: 0 | AJ145: 17 | AK145: 17 | AM145: 8 | AN145: 13 | AO145: 0 | AP145: 26 | AQ145: 16 | AY145: 8
A146: 2025-08-15 | B146: -1 | C146: 68 | D146: 53 | F146: -1 | G146: 64 | H146: 59 | J146: 1 | K146: 77 | L146: 44 | N146: 1 | O146: 52 | P146: 71 | R146: -1 | S146: 61 | T146: 62 | V146: 1 | W146: 70 | X146: 52 | Z146: 1 | AA146: 70 | AB146: 52 | AE146: 15 | AF146: 5 | AG146: 33 | AH146: -19 | AI146: -1 | AJ146: 18 | AK146: 18 | AM146: 9 | AN146: 14 | AO146: 0 | AP146: 26 | AQ146: 17 | AY146: 9
A147: 2025-08-16 | B147: 1 | C147: 69 | D147: 53 | F147: -1 | G147: 64 | H147: 60 | J147: 1 | K147: 78 | L147: 44 | N147: -1 | O147: 52 | P147: 72 | R147: -1 | S147: 61 | T147: 63 | V147: -1 | W147: 70 | X147: 53 | Z147: 1 | AA147: 71 | AB147: 52 | AE147: 16 | AF147: 4 | AG147: 34 | AH147: -20 | AI147: -2 | AJ147: 17 | AK147: 19 | AM147: 9 | AN147: 15 | AO147: 0 | AP147: 27 | AQ147: 18 | AY147: 9
A148: 2025-08-17 | B148: 1 | C148: 70 | D148: 53 | F148: 1 | G148: 65 | H148: 60 | J148: -1 | K148: 78 | L148: 45 | N148: -1 | O148: 52 | P148: 73 | R148: -1 | S148: 61 | T148: 64 | V148: 1 | W148: 71 | X148: 53 | Z148: 1 | AA148: 72 | AB148: 52 | AE148: 17 | AF148: 5 | AG148: 33 | AH148: -21 | AI148: -3 | AJ148: 18 | AK148: 20 | AM148: 8 | AN148: 14 | AO148: 0 | AP148: 27 | AQ148: 18 | AY148: 8
A149: 2025-08-18 | B149: -1 | C149: 70 | D149: 54 | F149: 1 | G149: 66 | H149: 60 | J149: 1 | K149: 79 | L149: 45 | N149: 1 | O149: 53 | P149: 73 | R149: 1 | S149: 62 | T149: 64 | V149: 1 | W149: 72 | X149: 53 | AA149: 72 | AB149: 52 | AE149: 16 | AF149: 6 | AG149: 34 | AH149: -20 | AI149: -2 | AJ149: 19 | AK149: 20 | AM149: 9 | AN149: 14 | AO149: 0 | AP149: 27 | AQ149: 18 | AY149: 9
A150: 2025-08-19 | B150: 2 | C150: 72 | D150: 54 | F150: 1 | G150: 67 | H150: 60 | J150: -2 | K150: 79 | L150: 47 | N150: -1 | O150: 53 | P150: 74 | R150: 1 | S150: 63 | T150: 64 | V150: 1 | W150: 73 | X150: 53 | Z150: 1 | AA150: 73 | AB150: 52 | AE150: 18 | AF150: 7 | AG150: 32 | AH150: -21 | AI150: -1 | AJ150: 20 | AK150: 21 | AM150: 7 | AN150: 12.5 | AO150: 0 | AP150: 26.5 | AQ150: 16.5 | AY150: 7
A151: 2025-08-20 | B151: 1 | C151: 73 | D151: 54 | F151: -1 | G151: 67 | H151: 61 | J151: -1 | K151: 79 | L151: 48 | N151: 1 | O151: 54 | P151: 74 | R151: -1 | S151: 63 | T151: 65 | V151: 1 | W151: 74 | X151: 53 | Z151: -1 | AA151: 73 | AB151: 53 | AE151: 19 | AF151: 6 | AG151: 31 | AH151: -20 | AI151: -2 | AJ151: 21 | AK151: 20 | AM151: 6 | AN151: 12.5 | AO151: 0 | AP151: 25.5 | AQ151: 16.5 | AY151: 6
A152: 2025-08-21 | B152: -1 | C152: 73 | D152: 55 | G152: 67 | H152: 61 | J152: 1 | K152: 80 | L152: 48 | O152: 54 | P152: 74 | R152: 1 | S152: 64 | T152: 65 | W152: 74 | X152: 53 | Z152: -1 | AA152: 73 | AB152: 54 | AE152: 18 | AF152: 6 | AG152: 32 | AH152: -20 | AI152: -1 | AJ152: 21 | AK152: 19 | AM152: 7 | AN152: 13 | AO152: 0 | AP152: 26 | AQ152: 16.5 | AY152: 7
A153: 2025-08-22 | B153: 1 | C153: 74 | D153: 55 | F153: -1 | G153: 67 | H153: 62 | J153: 1 | K153: 81 | L153: 48 | N153: 1 | O153: 55 | P153: 74 | R153: -1 | S153: 64 | T153: 66 | V153: -1 | W153: 74 | X153: 54 | Z153: 1 | AA153: 74 | AB153: 54 | AE153: 19 | AF153: 5 | AG153: 33 | AH153: -19 | AI153: -2 | AJ153: 20 | AK153: 20 | AM153: 7 | AN153: 14 | AO153: 0 | AP153: 26 | AQ153: 17.5 | AY153: 7
A154: 2025-08-23 | B154: 1 | C154: 75 | D154: 55 | F154: -1 | G154: 67 | H154: 63 | J154: -1 | K154: 81 | L154: 49 | N154: 1 | O154: 56 | P154: 74 | S154: 64 | T154: 66 | V154: 1 | W154: 75 | X154: 54 | Z154: 1 | AA154: 75 | AB154: 54 | AE154: 20 | AF154: 4 | AG154: 32 | AH154: -18 | AI154: -2 | AJ154: 21 | AK154: 21 | AM154: 6 | AN154: 14 | AO154: 0 | AP154: 25 | AQ154: 17 | AY154: 6
A155: 2025-08-24 | B155: 1 | C155: 76 | D155: 55 | F155: 1 | G155: 68 | H155: 63 | J155: -1 | K155: 81 | L155: 50 | N155: 1 | O155: 57 | P155: 74 | R155: -1 | S155: 64 | T155: 67 | V155: 1 | W155: 76 | X155: 54 | Z155: -1 | AA155: 75 | AB155: 55 | AE155: 21 | AF155: 5 | AG155: 31 | AH155: -17 | AI155: -3 | AJ155: 22 | AK155: 20 | AM155: 5 | AN155: 13 | AO155: 0 | AP155: 24 | AQ155: 17 | AY155: 5
A156: 2025-08-25 | C156: 76 | D156: 55 | F156: -1 | G156: 68 | H156: 64 | J156: 1 | K156: 82 | L156: 50 | N156: -1 | O156: 57 | P156: 75 | R156: 1 | S156: 65 | T156: 67 | V156: -1 | W156: 76 | X156: 55 | AA156: 75 | AB156: 55 | AE156: 21 | AF156: 4 | AG156: 32 | AH156: -18 | AI156: -2 | AJ156: 21 | AK156: 20 | AM156: 5.5 | AN156: 14 | AO156: 0 | AP156: 25 | AQ156: 17 | AY156: 5.5
A157: 2025-08-26 | B157: -1 | C157: 76 | D157: 56 | F157: -1 | G157: 68 | H157: 65 | J157: 1 | K157: 83 | L157: 50 | N157: 1 | O157: 58 | P157: 75 | R157: -1 | S157: 65 | T157: 68 | V157: -1 | W157: 76 | X157: 56 | Z157: -1 | AA157: 75 | AB157: 56 | AE157: 20 | AF157: 3 | AG157: 33 | AH157: -17 | AI157: -3 | AJ157: 20 | AK157: 19 | AM157: 6.5 | AN157: 15 | AO157: 0 | AP157: 25 | AQ157: 18 | AY157: 6.5
A158: 2025-08-27 | B158: -1 | C158: =C157+IF(B158>0,B158,0) -> 76 | D158: =D157-IF(B158<0,B158,0) -> 57 | F158: -1 | G158: =G157+IF(F158>0,F158,0) -> 68 | H158: =H157-IF(F158<0,F158,0) -> 66 | J158: -1 | K158: 83 | L158: 51 | N158: 1 | O158: 59 | P158: 75 | R158: -1 | S158: 65 | T158: 69 | V158: -1 | W158: 76 | X158: 57 | Z158: 1 | AA158: 76 | AB158: 56 | AE158: 19 | AF158: 2 | AG158: 32 | AH158: -16 | AI158: -4 | AJ158: 19 | AK158: 20 | AM158: 6.5 | AN158: 15 | AO158: 0 | AP158: 24 | AQ158: 18 | AY158: 6.5
A159: 2025-08-28 | B159: -1 | C159: 76 | D159: 58 | G159: 68 | H159: 66 | J159: -1 | K159: 83 | L159: 52 | N159: -1 | O159: 59 | P159: 76 | R159: 1 | S159: 66 | T159: 69 | V159: 1 | W159: 77 | X159: 57 | Z159: 1 | AA159: 77 | AB159: 56 | AE159: 18 | AF159: 2 | AG159: 31 | AH159: -17 | AI159: -3 | AJ159: 20 | AK159: 21 | AM159: 6.5 | AN159: 14.5 | AO159: 0 | AP159: 24 | AQ159: 17 | AY159: 6.5
A160: 2025-08-29 | B160: 1 | C160: 77 | D160: 58 | F160: -1 | G160: 68 | H160: 67 | J160: 1 | K160: 84 | L160: 52 | N160: 1 | O160: 60 | P160: 76 | R160: 1 | S160: 67 | T160: 69 | V160: 1 | W160: 78 | X160: 57 | Z160: 2 | AA160: 79 | AB160: 56 | AE160: 19 | AF160: 1 | AG160: 32 | AH160: -16 | AI160: -2 | AJ160: 21 | AK160: 23 | AM160: 6.5 | AN160: 15.5 | AO160: 0 | AP160: 24 | AQ160: 17 | AY160: 6.5
A161: 2025-08-30 | B161: 1 | C161: 78 | D161: 58 | F161: -1 | G161: 68 | H161: 68 | J161: 1 | K161: 85 | L161: 52 | N161: 1 | O161: 61 | P161: 76 | R161: 1 | S161: 68 | T161: 69 | V161: 1 | W161: 79 | X161: 57 | Z161: 1 | AA161: 80 | AB161: 56 | AE161: 20 | AF161: 0 | AG161: 33 | AH161: -15 | AI161: -1 | AJ161: 22 | AK161: 24 | AM161: 6.5 | AN161: 16.5 | AO161: 0 | AP161: 24 | AQ161: 17 | AY161: 6.5
A162: 2025-08-31 | B162: -1 | C162: 78 | D162: 59 | F162: 1 | G162: 69 | H162: 68 | J162: -1 | K162: 85 | L162: 53 | N162: -1 | O162: =O161+IF(N162>0,N162,0) -> 61 | P162: =P161-IF(N162<0,N162,0) -> 77 | R162: -1 | S162: 68 | T162: 70 | V162: -1 | W162: 79 | X162: 58 | Z162: -1 | AA162: 80 | AB162: 57 | AE162: 19 | AF162: 1 | AG162: 32 | AH162: -16 | AI162: -2 | AJ162: 21 | AK162: 23 | AM162: 6.5 | AN162: 15.5 | AO162: 0 | AP162: 24 | AQ162: 17 | AY162: =IF(AO162 = 0, MIN(AM162:AN162, AP162:AQ162), 0-AO162) -> 6.5
A163: 2025-09-01 | B163: 1 | C163: 79 | D163: 59 | F163: 1 | G163: 70 | H163: 68 | J163: -1 | K163: 85 | L163: 54 | O163: 61 | P163: 77 | R163: -1 | S163: 68 | T163: 71 | V163: 1 | W163: 80 | X163: 58 | Z163: 1 | AA163: 81 | AB163: 57 | AE163: =C163-D163 -> 20 | AF163: =G163-H163 -> 2 | AG163: =K163-L163 -> 31 | AH163: =O163-P163 -> -16 | AI163: =S163-T163 -> -3 | AJ163: 22 | AK163: =AA163-AB163 -> 24 | AM163: 5.5 | AN163: 14.5 | AO163: 0 | AP163: 23.5 | AQ163: 17 | AY163: 5.5
A164: 2025-09-02 | B164: 1 | C164: 80 | D164: 59 | F164: -1 | G164: 70 | H164: 69 | K164: 85 | L164: 54 | N164: 1 | O164: 62 | P164: 77 | R164: 1 | S164: 69 | T164: 71 | W164: 80 | X164: 58 | Z164: -1 | AA164: 81 | AB164: 58 | AE164: 21 | AF164: 1 | AG164: 31 | AH164: -15 | AI164: -2 | AJ164: 22 | AK164: 23 | AM164: 5 | AN164: 15 | AO164: 0 | AP164: 23 | AQ164: =(MAX($AE164:$AI164)-AI164)/2 -> 16.5 | AY164: 5
A165: 2025-09-03 | B165: -1 | C165: 80 | D165: 60 | F165: -1 | G165: 70 | H165: 70 | J165: 1 | K165: =K164+IF(J165>0,J165,0) -> 86 | L165: =L164-IF(J165<0,J165,0) -> 54 | N165: 1 | O165: 63 | P165: 77 | R165: 1 | S165: 70 | T165: 71 | V165: -1 | W165: 80 | X165: 59 | Z165: -1 | AA165: 81 | AB165: 59 | AE165: 20 | AF165: 0 | AG165: 32 | AH165: -14 | AI165: -1 | AJ165: 21 | AK165: 22 | AM165: 6 | AN165: 16 | AO165: 0 | AP165: 23 | AQ165: 16.5 | AY165: 6
A166: 2025-09-04 | C166: 80 | D166: 60 | G166: 70 | H166: 70 | J166: -1 | K166: 86 | L166: 55 | N166: 1 | O166: 64 | P166: 77 | S166: 70 | T166: 71 | V166: 1 | W166: 81 | X166: 59 | AA166: 81 | AB166: 59 | AE166: 20 | AF166: 0 | AG166: 31 | AH166: -13 | AI166: -1 | AJ166: 22 | AK166: 22 | AM166: 5.5 | AN166: 15.5 | AO166: 0 | AP166: 22 | AQ166: 16 | AY166: 5.5
A167: 2025-09-05 | B167: 1 | C167: 81 | D167: 60 | F167: -1 | G167: 70 | H167: 71 | J167: 1 | K167: 87 | L167: 55 | N167: -1 | O167: 64 | P167: 78 | R167: -1 | S167: 70 | T167: 72 | V167: 1 | W167: 82 | X167: 59 | Z167: -1 | AA167: 81 | AB167: 60 | AE167: 21 | AF167: -1 | AG167: 32 | AH167: -14 | AI167: -2 | AJ167: 23 | AK167: 21 | AM167: 5.5 | AN167: 16.5 | AO167: 0 | AP167: 23 | AQ167: 17 | AY167: 5.5
A168: 2025-09-06 | B168: -1 | C168: 81 | D168: 61 | F168: 1 | G168: 71 | H168: 71 | J168: 1 | K168: 88 | L168: 55 | N168: -1 | O168: 64 | P168: 79 | R168: 1 | S168: 71 | T168: 72 | V168: 1 | W168: 83 | X168: 59 | Z168: 1 | AA168: 82 | AB168: 60 | AE168: 20 | AF168: 0 | AG168: 33 | AH168: -15 | AI168: -1 | AJ168: 24 | AK168: 22 | AM168: 6.5 | AN168: 16.5 | AO168: 0 | AP168: 24 | AQ168: 17 | AY168: 6.5
A169: 2025-09-07 | B169: -1 | C169: 81 | D169: 62 | F169: 1 | G169: 72 | H169: 71 | J169: 1 | K169: 89 | L169: 55 | N169: -1 | O169: 64 | P169: 80 | R169: 1 | S169: 72 | T169: 72 | V169: -1 | W169: 83 | X169: 60 | Z169: -1 | AA169: 82 | AB169: 61 | AE169: 19 | AF169: 1 | AG169: 34 | AH169: -16 | AI169: 0 | AJ169: 23 | AK169: 21 | AM169: 7.5 | AN169: 16.5 | AO169: 0 | AP169: 25 | AQ169: 17 | AY169: 7.5
A170: 2025-09-08 | B170: -1 | C170: 81 | D170: 63 | F170: -1 | G170: 72 | H170: 72 | J170: -1 | K170: 89 | L170: 56 | O170: 64 | P170: 80 | R170: -1 | S170: 72 | T170: 73 | V170: 1 | W170: 84 | X170: 60 | AA170: 82 | AB170: 61 | AE170: 18 | AF170: 0 | AG170: 33 | AH170: -16 | AI170: -1 | AJ170: 24 | AK170: 21 | AM170: 7.5 | AN170: 16.5 | AO170: 0 | AP170: 24.5 | AQ170: 17 | AY170: 7.5
A171: 2025-09-09 | B171: 1 | C171: 82 | D171: 63 | F171: 1 | G171: 73 | H171: 72 | J171: -1 | K171: 89 | L171: 57 | N171: -1 | O171: 64 | P171: 81 | R171: -1 | S171: 72 | T171: 74 | V171: 1 | W171: 85 | X171: 60 | Z171: 1 | AA171: 83 | AB171: 61 | AE171: 19 | AF171: 1 | AG171: 32 | AH171: -17 | AI171: -2 | AJ171: 25 | AK171: 22 | AM171: 6.5 | AN171: 15.5 | AO171: 0 | AP171: 24.5 | AQ171: 17 | AY171: 6.5
A172: 2025-09-10 | B172: 1 | C172: 83 | D172: 63 | F172: 1 | G172: 74 | H172: 72 | J172: -1 | K172: 89 | L172: 58 | N172: -1 | O172: 64 | P172: 82 | R172: -1 | S172: 72 | T172: 75 | V172: 1 | W172: 86 | X172: 60 | Z172: -1 | AA172: 83 | AB172: 62 | AE172: 20 | AF172: 2 | AG172: 31 | AH172: -18 | AI172: -3 | AJ172: 26 | AK172: 21 | AM172: 5.5 | AN172: 14.5 | AO172: 0 | AP172: 24.5 | AQ172: 17 | AY172: 5.5
A173: 2025-09-11 | C173: 83 | D173: 63 | G173: 74 | H173: 72 | K173: =K172+IF(J173>0,J173,0) -> 89 | L173: =L172-IF(J173<0,J173,0) -> 58 | N173: -1 | O173: 64 | P173: 83 | S173: =S172+IF(R173>0,R173,0) -> 72 | T173: =T172-IF(R173<0,R173,0) -> 75 | V173: 1 | W173: 87 | X173: 60 | Z173: 1 | AA173: 84 | AB173: 62 | AE173: 20 | AF173: 2 | AG173: 31 | AH173: -19 | AI173: -3 | AJ173: 27 | AK173: 22 | AM173: 5.5 | AN173: 14.5 | AO173: 0 | AP173: 25 | AQ173: 17 | AY173: 5.5
A174: 2025-09-12 | B174: 1 | C174: 84 | D174: 63 | F174: -1 | G174: 74 | H174: 73 | J174: 1 | K174: 90 | L174: 58 | N174: -1 | O174: 64 | P174: 84 | R174: -1 | S174: 72 | T174: 76 | V174: 1 | W174: 88 | X174: 60 | Z174: 1 | AA174: 85 | AB174: 62 | AE174: 21 | AF174: 1 | AG174: 32 | AH174: -20 | AI174: -4 | AJ174: 28 | AK174: 23 | AM174: 5.5 | AN174: 15.5 | AO174: 0 | AP174: 26 | AQ174: 18 | AY174: 5.5
A175: 2025-09-13 | B175: -1 | C175: 84 | D175: 64 | F175: -1 | G175: 74 | H175: 74 | J175: 1 | K175: =K174+IF(J175>0,J175,0) -> 91 | L175: =L174-IF(J175<0,J175,0) -> 58 | N175: 1 | O175: 65 | P175: 84 | R175: -1 | S175: 72 | T175: 77 | V175: 1 | W175: 89 | X175: 60 | Z175: 1 | AA175: 86 | AB175: 62 | AE175: 20 | AF175: 0 | AG175: 33 | AH175: -19 | AI175: -5 | AJ175: 29 | AK175: 24 | AM175: 6.5 | AN175: 16.5 | AO175: 0 | AP175: 26 | AQ175: 19 | AY175: 6.5
A176: 2025-09-14 | B176: 1 | C176: 85 | D176: 64 | F176: -1 | G176: 74 | H176: 75 | J176: -1 | K176: 91 | L176: 59 | N176: -1 | O176: 65 | P176: 85 | R176: 1 | S176: 73 | T176: 77 | V176: -1 | W176: 89 | X176: 61 | Z176: -1 | AA176: 86 | AB176: 63 | AE176: 21 | AF176: -1 | AG176: 32 | AH176: -20 | AI176: -4 | AJ176: 28 | AK176: 23 | AM176: 5.5 | AN176: 16.5 | AO176: 0 | AP176: 26 | AQ176: 18 | AY176: 5.5
A177: 2025-09-15 | B177: 1 | C177: 86 | D177: 64 | F177: 1 | G177: 75 | H177: 75 | K177: 91 | L177: 59 | N177: -1 | O177: 65 | P177: 86 | R177: -1 | S177: 73 | T177: 78 | V177: 1 | W177: 90 | X177: 61 | Z177: 1 | AA177: 87 | AB177: 63 | AE177: 22 | AF177: 0 | AG177: 32 | AH177: -21 | AI177: -5 | AJ177: 29 | AK177: 24 | AM177: 5 | AN177: 16 | AO177: 0 | AP177: 26.5 | AQ177: 18.5 | AY177: 5
A178: 2025-09-16 | B178: 1 | C178: 87 | D178: 64 | F178: -1 | G178: 75 | H178: 76 | J178: 1 | K178: 92 | L178: 59 | N178: -1 | O178: 65 | P178: 87 | R178: 1 | S178: 74 | T178: 78 | V178: 1 | W178: 91 | X178: 61 | Z178: -1 | AA178: 87 | AB178: 64 | AE178: 23 | AF178: -1 | AG178: 33 | AH178: -22 | AI178: -4 | AJ178: 30 | AK178: 23 | AM178: 5 | AN178: 17 | AO178: 0 | AP178: 27.5 | AQ178: 18.5 | AY178: 5
A179: 2025-09-17 | B179: 1 | C179: 88 | D179: 64 | F179: 1 | G179: 76 | H179: 76 | J179: 1 | K179: 93 | L179: 59 | N179: -1 | O179: 65 | P179: 88 | R179: -1 | S179: 74 | T179: 79 | V179: -1 | W179: 91 | X179: 62 | Z179: 1 | AA179: 88 | AB179: 64 | AE179: 24 | AF179: 0 | AG179: 34 | AH179: -23 | AI179: -5 | AJ179: 29 | AK179: 24 | AM179: 5 | AN179: 17 | AO179: 0 | AP179: 28.5 | AQ179: 19.5 | AY179: 5
A180: 2025-09-18 | B180: -1 | C180: 88 | D180: 65 | F180: 1 | G180: 77 | H180: 76 | J180: 1 | K180: 94 | L180: 59 | O180: 65 | P180: 88 | S180: 74 | T180: 79 | W180: 91 | X180: 62 | Z180: -1 | AA180: 88 | AB180: 65 | AE180: 23 | AF180: 1 | AG180: 35 | AH180: -23 | AI180: -5 | AJ180: 29 | AK180: 23 | AM180: 6 | AN180: 17 | AO180: 0 | AP180: 29 | AQ180: 20 | AU180: Team | AV180: GB | AW180: % | AY180: 6
A181: 2025-09-19 | B181: -1 | C181: 88 | D181: 66 | F181: 1 | G181: 78 | H181: 76 | J181: -1 | K181: 94 | L181: 60 | N181: -1 | O181: 65 | P181: 89 | R181: 1 | S181: 75 | T181: 79 | V181: 1 | W181: 92 | X181: 62 | Z181: -1 | AA181: 88 | AB181: 66 | AE181: 22 | AF181: 2 | AG181: 34 | AH181: -24 | AI181: -4 | AJ181: 30 | AK181: 22 | AM181: 6 | AN181: 16 | AO181: 0 | AP181: =(MAX($AE181:$AI181)-AH181)/2 -> 29 | AQ181: 19 | AU181: =AO$1 -> MIL | AV181: =AO$191 -> 0 | AW181: =AO$193 -> 0.5987654321 | AY181: 6
A182: 2025-09-20 | B182: -1 | C182: 88 | D182: 67 | F182: 1 | G182: 79 | H182: 76 | J182: 1 | K182: 95 | L182: 60 | N182: 1 | O182: 66 | P182: 89 | R182: -1 | S182: 75 | T182: 80 | V182: -1 | W182: =W181+IF(V182>0,V182,0) -> 92 | X182: =X181-IF(V182<0,V182,0) -> 63 | Z182: -1 | AA182: 88 | AB182: 67 | AE182: 21 | AF182: 3 | AG182: 35 | AH182: -23 | AI182: -5 | AJ182: 29 | AK182: 21 | AM182: 7 | AN182: 16 | AO182: 0 | AP182: =(MAX($AE182:$AI182)-AH182)/2 -> 29 | AQ182: =(MAX($AE182:$AI182)-AI182)/2 -> 20 | AU182: =AM$1 -> CHC | AV182: =AM$191 -> 5 | AW182: =AM$193 -> 0.5679012346 | AY182: 7
A183: 2025-09-21 | B183: -1 | C183: 88 | D183: 68 | F183: 1 | G183: 80 | H183: 76 | J183: -1 | K183: 95 | L183: 61 | N183: 1 | O183: 67 | P183: 89 | R183: 1 | S183: 76 | T183: 80 | V183: -1 | W183: 92 | X183: 64 | Z183: 1 | AA183: =AA182+IF(Z183>0,Z183,0) -> 89 | AB183: =AB182-IF(Z183<0,Z183,0) -> 67 | AE183: 20 | AF183: 4 | AG183: 34 | AH183: -22 | AI183: -4 | AJ183: 28 | AK183: 22 | AM183: 7 | AN183: 15 | AO183: 0 | AP183: =(MAX($AE183:$AI183)-AH183)/2 -> 28 | AQ183: =(MAX($AE183:$AI183)-AI183)/2 -> 19 | AU183: =AN$1 -> CIN | AV183: =AN$191 -> 14 | AW183: =AN$193 -> 0.512345679 | AY183: 7
A184: 2025-09-22 | C184: =C183+IF(B184>0,B184,0) -> 88 | D184: =D183-IF(B184<0,B184,0) -> 68 | G184: =G183+IF(F184>0,F184,0) -> 80 | H184: =H183-IF(F184<0,F184,0) -> 76 | J184: -1 | K184: =K183+IF(J184>0,J184,0) -> 95 | L184: =L183-IF(J184<0,J184,0) -> 62 | O184: =O183+IF(N184>0,N184,0) -> 67 | P184: =P183-IF(N184<0,N184,0) -> 89 | R184: 1 | S184: =S183+IF(R184>0,R184,0) -> 77 | T184: =T183-IF(R184<0,R184,0) -> 80 | W184: =W183+IF(V184>0,V184,0) -> 92 | X184: =X183-IF(V184<0,V184,0) -> 64 | AA184: 89 | AB184: 67 | AE184: 20 | AF184: 4 | AG184: 33 | AH184: -22 | AI184: -3 | AJ184: 28 | AK184: 22 | AM184: 6.5 | AN184: 14.5 | AO184: 0 | AP184: =(MAX($AE184:$AI184)-AH184)/2 -> 27.5 | AQ184: =(MAX($AE184:$AI184)-AI184)/2 -> 18 | AU184: =AQ$1 -> STL | AV184: =AQ$191 -> 19 | AW184: =AQ$193 -> 0.4814814815 | AY184: 6.5
A185: 2025-09-23 | B185: -1 | C185: 88 | D185: 69 | F185: -1 | G185: 80 | H185: 77 | J185: -1 | K185: =K184+IF(J185>0,J185,0) -> 95 | L185: =L184-IF(J185<0,J185,0) -> 63 | N185: 1 | O185: 68 | P185: 89 | R185: 1 | S185: 78 | T185: 80 | V185: -1 | W185: 92 | X185: 65 | Z185: 1 | AA185: 90 | AB185: 67 | AE185: 19 | AF185: 3 | AG185: 32 | AH185: -21 | AI185: -2 | AJ185: 27 | AK185: 23 | AM185: 6.5 | AN185: 14.5 | AO185: 0 | AP185: =(MAX($AE185:$AI185)-AH185)/2 -> 26.5 | AQ185: =(MAX($AE185:$AI185)-AI185)/2 -> 17 | AU185: =AP$1 -> PIT | AV185: =AP$191 -> 26 | AW185: =AP$193 -> 0.4382716049 | AY185: 6.5
A186: 2025-09-24 | B186: 1 | C186: 89 | D186: 69 | F186: -1 | G186: 80 | H186: 78 | J186: 1 | K186: 96 | L186: 63 | N186: 1 | O186: 69 | P186: 89 | R186: -1 | S186: 78 | T186: 81 | V186: 1 | W186: 93 | X186: 65 | Z186: -1 | AA186: 90 | AB186: 68 | AE186: =C186-D186 -> 20 | AF186: =G186-H186 -> 2 | AG186: =K186-L186 -> 33 | AH186: =O186-P186 -> -20 | AI186: =S186-T186 -> -3 | AJ186: 28 | AK186: =AA186-AB186 -> 22 | AM186: =(MAX($AE186:$AI186)-AE186)/2 -> 6.5 | AN186: =(MAX($AE186:$AI186)-AF186)/2 -> 15.5 | AO186: =(MAX($AE186:$AI186)-AG186)/2 -> 0 | AP186: =(MAX($AE186:$AI186)-AH186)/2 -> 26.5 | AQ186: =(MAX($AE186:$AI186)-AI186)/2 -> 18 | AY186: 6.5
A187: 2025-09-25 | B187: -1 | C187: 89 | D187: 70 | F187: 1 | G187: 81 | H187: 78 | K187: 96 | L187: 63 | N187: -1 | O187: 69 | P187: 90 | S187: 78 | T187: 81 | V187: 1 | W187: 94 | X187: 65 | Z187: 1 | AA187: 91 | AB187: 68 | AE187: 19 | AF187: 3 | AG187: 33 | AH187: -21 | AI187: -3 | AJ187: 29 | AK187: 23 | AM187: 7 | AN187: 15 | AO187: 0 | AP187: =(MAX($AE187:$AI187)-AH187)/2 -> 27 | AQ187: =(MAX($AE187:$AI187)-AI187)/2 -> 18 | AY187: 7
A188: 2025-09-26 | B188: 1 | C188: 90 | D188: 70 | F188: 1 | G188: 82 | H188: 78 | J188: -1 | K188: 96 | L188: 64 | N188: 1 | O188: 70 | P188: 90 | R188: -1 | S188: 78 | T188: 82 | V188: 1 | W188: 95 | X188: 65 | Z188: 1 | AA188: 92 | AB188: 68 | AE188: =C188-D188 -> 20 | AF188: =G188-H188 -> 4 | AG188: =K188-L188 -> 32 | AH188: =O188-P188 -> -20 | AI188: =S188-T188 -> -4 | AJ188: 30 | AK188: =AA188-AB188 -> 24 | AM188: =(MAX($AE188:$AI188)-AE188)/2 -> 6 | AN188: =(MAX($AE188:$AI188)-AF188)/2 -> 14 | AO188: =(MAX($AE188:$AI188)-AG188)/2 -> 0 | AP188: =(MAX($AE188:$AI188)-AH188)/2 -> 26 | AQ188: =(MAX($AE188:$AI188)-AI188)/2 -> 18 | AY188: 6
A189: 2025-09-27 | B189: 1 | C189: 91 | D189: 70 | F189: 1 | G189: 83 | H189: 78 | J189: -1 | K189: 96 | L189: 65 | N189: 1 | O189: 71 | P189: 90 | R189: -1 | S189: 78 | T189: 83 | V189: -1 | W189: 95 | X189: 66 | Z189: 1 | AA189: 93 | AB189: 68 | AE189: =C189-D189 -> 21 | AF189: =G189-H189 -> 5 | AG189: =K189-L189 -> 31 | AH189: =O189-P189 -> -19 | AI189: =S189-T189 -> -5 | AJ189: =W189-X189 -> 29 | AK189: =AA189-AB189 -> 25 | AM189: =(MAX($AE189:$AI189)-AE189)/2 -> 5 | AN189: =(MAX($AE189:$AI189)-AF189)/2 -> 13 | AO189: =(MAX($AE189:$AI189)-AG189)/2 -> 0 | AP189: =(MAX($AE189:$AI189)-AH189)/2 -> 25 | AQ189: =(MAX($AE189:$AI189)-AI189)/2 -> 18 | AY189: 5
A190: 2025-09-28 | B190: 1 | C190: 92 | D190: 70 | F190: -1 | G190: 83 | H190: 79 | J190: 1 | K190: 97 | L190: 65 | N190: -1 | O190: 71 | P190: 91 | R190: -1 | S190: 78 | T190: 84 | V190: 1 | W190: 96 | X190: 66 | Z190: -1 | AA190: 93 | AB190: 69 | AE190: 22 | AF190: 4 | AG190: 32 | AH190: -20 | AI190: -6 | AJ190: 30 | AK190: 24 | AM190: 5 | AN190: 14 | AO190: 0 | AP190: 26 | AQ190: 19 | AY190: 5
A191: 2025-09-29 | C191: 92 | D191: 70 | G191: 83 | H191: 79 | K191: 97 | L191: 65 | O191: 71 | P191: 91 | S191: 78 | T191: 84 | W191: 96 | X191: 66 | AA191: 93 | AB191: 69 | AE191: 22 | AF191: 4 | AG191: 32 | AH191: -20 | AI191: -6 | AJ191: 30 | AK191: 24 | AM191: 5 | AN191: 14 | AO191: 0 | AP191: 26 | AQ191: 19 | AY191: 5
AM193: =C191/(C191+D191) -> 0.5679012346 | AN193: =G191/(G191+H191) -> 0.512345679 | AO193: =K191/(K191+L191) -> 0.5987654321 | AP193: =O191/(O191+P191) -> 0.4382716049 | AQ193: =S191/(S191+T191) -> 0.4814814815
